Workbook

Sheet UEM
A1: MINISTÉRIO DA INTEGRAÇÃO E DO DESENVOLVIMENTO REGIONAL | J1: BDI serviç | K1: 1.2591
A2: COMPANHIA DE DESENVOLVIMENTO DOS VALES DO SÃO FRANCISCO E DO PARNAÍBA | J2: BDI fornec. | K2: 1.136
A3: SEDE
A4: PLANILHA ORÇAMENTÁRIA DE ESTIMATIVA GERAL PARA O ESTADO DO PARÁ | H4: Base SINAPI-PA 03-2025 ORSE 02-2025
H5: Data: Maio - 2025
A7: Item | B7: Base | C7: Código | D7: Descrição | E7: Unid. | F7: Quant. | G7: Valor (R$)
G8: Unit. (sem BDI) | H8: Unit. (com BDI) | I8: Total
A10: 15 | D10: UNIDADE DE EXTRAÇÃO DE MEL | I10: =SUM(I12,I15,I21,I28,I34,I36,I40,I43,I48,I54) -> 238824.63
A12: 15.1 | D12: SERVIÇOS PRELIMINARES | I12: =SUM(I13:I14) -> 3691.63
A13: 15.2 | B13: Sinapi | C13: 105009 | D13: =[1]CPU!$A$91 -> LOCAÇÃO DE OBRAS | E13: m | F13: =(7.89*2+9.6*2) -> 34.98 | G13: =J13 -> 82.33 | H13: =(G13*K$1) -> 103.661703 | I13: =ROUND(F13*H13,2) -> 3626.09 | J13: 82.33
A14: 15.3 | B14: Sinapi | C14: 98525 | D14: LIMPEZA MECANIZADA DE CAMADA VEGETAL, VEGETAÇÃO E PEQUENAS ÁRVORES (DIÂMETRO DE TRONCO MENOR QUE 0,20 M), COM TRATOR DE ESTEIRAS. | E14: m² | F14: =9.56*7.891 -> 75.43796 | G14: =J14 -> 0.69 | H14: =(G14*K$1) -> 0.868779 | I14: =ROUND(F14*H14,2) -> 65.54 | J14: 0.69
A15: 15.4 | D15: MOVIMENTO DE TERRA | I15: =SUM(I16:I20) -> 2181.06
A16: 15.5 | B16: Sinapi | C16: 101230 | D16: ESCAVAÇÃO VERTICAL A CÉU ABERTO, EM OBRAS DE INFRAESTRUTURA, INCLUINDO CARGA, DESCARGA E TRANSPORTE, EM SOLO DE 1ª CATEGORIA COM ESCAVADEIRA HIDRÁULICA (CAÇAMBA: 0,8 M³ / 111 HP) | E16: m³ | F16: =45.5+1.92+4.32+3 -> 54.74 | G16: =J16 -> 11.91 | H16: =(G16*K$1) -> 14.995881 | I16: =ROUND(F16*H16,2) -> 820.87 | J16: 11.91
A17: 15.6 | B17: Sinapi | C17: 100577 | D17: REGULARIZAÇÃO E COMPACTAÇÃO DE SUBLEITO DE SOLO PREDOMINANTEMENTE ARENOSO. | E17: m² | F17: =9.6*7.9*0.6 -> 45.504 | G17: 0.53 | H17: =(G17*K$1) -> 0.667323 | I17: =ROUND(F17*H17,2) -> 30.37 | J17: 0.53
A18: 15.7 | B18: Sinapi | C18: 96385 | D18: EXECUÇÃO E COMPACTAÇÃO DE ATERRO COM SOLO PREDOMINANTEMENTE ARGILOSO - EXCLUSIVE SOLO, ESCAVAÇÃO, CARGA E TRANSPORTE | E18: m³ | F18: 64.4 | G18: 13.09 | H18: 16.481619 | I18: =ROUND(F18*H18,2) -> 1061.42 | J18: 13.09
A19: 15.8 | B19: Sinapi | C19: 100574 | D19: ESPALHAMENTO DE MATERIAL COM TRATOR DE ESTEIRAS. | E19: m³ | F19: 19.05 | G19: 1.46 | H19: 1.838286 | I19: =ROUND(F19*H19,2) -> 35.02 | J19: 1.46
A20: 15.9 | B20: Sinapi | C20: 100973 | D20: CARGA, MANOBRA E DESCARGA DE SOLOS E MATERIAIS GRANULARES EM CAMINHÃO BASCULANTE 6 M³ - CARGA COM PÁ CARREGADEIRA (CAÇAMBA DE 1,7 A 2,8 M³ /128 HP) E DESCARGA LIVRE | E20: m³ | F20: 19.05 | G20: 9.73 | H20: 12.251043 | I20: =ROUND(F20*H20,2) -> 233.38 | J20: 9.73
A21: 15.10 | D21: FUNDAÇÕES/ ESTRUTURAS DE CONCRETO ARMADO | I21: =SUM(I22:I25) -> 4377.93
A22: 15.11 | B22: Sinapi | C22: 92802 | D22: CORTE E DOBRA DE AÇO CA-50, DIÂMETRO DE 8,0 MM | E22: kg | F22: 101.6 | G22: =J22 -> 11.21 | H22: =(G22*K$1) -> 14.114511 | I22: =ROUND(F22*H22,2) -> 1434.03 | J22: 11.21
A23: 15.12 | B23: Sinapi | C23: 94965 | D23: CONCRETO FCK = 25MPA, TRAÇO 1:2,3:2,7 (CIMENTO/ AREIA MÉDIA/ BRITA 1) - PREPARO MECÂNICO COM BETONEIRA 400 L. | E23: m³ | F23: 1.63 | G23: 724.66 | H23: =(G23*K$1) -> 912.419406 | I23: =ROUND(F23*H23,2) -> 1487.24 | J23: 724.66
A24: 15.13 | B24: Sinapi | C24: 103673 | D24: LANÇAMENTO COM USO DE BOMBA, ADENSAMENTO E ACABAMENTO DE CONCRETO EM ESTRUTURAS. AF_02/2022 | E24: m³ | F24: 1.63 | G24: 47.62 | H24: 59.958342 | I24: =ROUND(F24*H24,2) -> 97.73 | J24: 47.62
A25: 15.14 | B25: Sinapi | C25: 97086 | D25: FABRICAÇÃO, MONTAGEM E DESMONTAGEM DE FORMA PARA RADIER, EM MADEIRA SERRADA, 4 UTILIZAÇÕES. | E25: m² | F25: 7.8 | G25: 138.37 | H25: 174.221667 | I25: =ROUND(F25*H25,2) -> 1358.93 | J25: 138.37
A26: 15.15 | D26: REVESTIMENTOS | I26: =SUM(I27:I27) -> 0
A27: 15.16 | B27: Sinapi | C27: 98555 | D27: IMPERMEABILIZAÇÃO DE SUPERFÍCIE COM ARGAMASSA POLIMÉRICA / MEMBRANA ACRÍLICA, 3 DEMÃOS. | E27: m² | F27: 0 | G27: =(J27) -> 0 | H27: =(J27*K$1) -> 0 | I27: =ROUND(F27*H27,2) -> 0
A28: 15.17 | D28: ALVENARIAS, DIVISÓRIAS E FECHAMENTOS | I28: =SUM(I29:I33) -> 10094.73
A29: 15.18 | B29: CPU | C29: CPU010 | D29: REVESTIMENTO DE PAREDES EM CHAPAS DE AÇO INOXIDÁVEL AISI 304 | E29: =[1]CPU!$I$140 -> m² | F29: 12 | G29: =J29 -> 49.76 | H29: =(G29*K$1) -> 62.652816 | I29: =ROUND(F29*H29,2) -> 751.83 | J29: =CPU!I205 -> 49.76
A30: 15.19 | B30: ORSE | C30: 10280/ORSE | D30: MANTA EM LÃ DE VIDRO | E30: =[1]CPU!$I$140 -> m² | F30: 66.278 | G30: 15.05 | H30: 18.949455 | I30: =ROUND(F30*H30,2) -> 1255.93 | J30: 15.05
A31: 15.20 | B31: CPU | C31: CPU009 | D31: CHAPA XADREZ EM ALUMINIO PARA PISO e:3mm, INCLUSO REBITE PARA FIXAÇÃO - APENAS MÃO DE OBRA | E31: =[1]CPU!$I$140 -> m² | F31: 1 | G31: 435.6709 | H31: 548.5532302 | I31: =ROUND(F31*H31,2) -> 548.55 | J31: =CPU!I192 -> 435.6709
A32: 15.21 | B32: Sinapi | C32: 96486 | D32: FORRO EM RÉGUAS DE PVC, LISO, PARA AMBIENTES COMERCIAIS, INCLUSIVE ESTRUTURA BIDIRECIONAL DE FIXAÇÃO | E32: =[1]CPU!$I$140 -> m² | F32: 29.93 | G32: 82.76 | H32: 104.203116 | I32: =ROUND(F32*H32,2) -> 3118.8 | J32: 82.76
A33: 15.22 | B33: Sinapi | C33: 104723 | D33: PAREDE COM SISTEMA EM CHAPAS DE GESSO PARA DRYWALL, USO INTERNO, COM DUAS FACES DUPLAS E ESTRUTURA METÁLICA COM GUIAS DUPLAS PARA PAREDES COM ÁREA LÍQUIDA MENOR QUE 6 M2, COM VÃOS. | E33: m² | F33: 12.096 | G33: 290.19 | H33: 365.378229 | I33: =ROUND(F33*H33,2) -> 4419.62 | J33: 290.19
A34: 15.23 | D34: PINTURAS | I34: =SUM(I35:I35) -> 9419.68
A35: 15.24 | B35: Sinapi | C35: 100751 | D35: PINTURA COM TINTA EPOXÍDICA DE ACABAMENTO PULVERIZADA SOBRE PERFIL METÁLICO EXECUTADO EM FÁBRICA (02 DEMÃOS). | E35: m² | F35: 170.3 | G35: =J35 -> 43.93 | H35: 55.312263 | I35: =ROUND(F35*H35,2) -> 9419.68 | J35: 43.93
A36: 15.25 | D36: COBERTURAS | I36: =SUM(I37:I39) -> 39600.77
A37: 15.26 | B37: ORSE | C37: 13874/ORSE | D37: ESTRUTURA METALICA P/ COBERTURA DE CRECHE PADRÃO 1 DO PADRÃO FNDE, EM LIGTH STEEL FRAME, COM PERFIS UE70 MONTANTES DE TUBO UE70, INCLUSIVE FORNECIMENTO E MONTAGEM. EXCLUSIVE TELHAS | E37: m² | F37: 96 | G37: =J37 -> 113.51 | H37: =(G37*K$1) -> 142.920441 | I37: =ROUND(F37*H37,2) -> 13720.36 | J37: 113.51
A38: 15.27 | B38: Sinapi | C38: 94216 | D38: TELHAMENTO COM TELHA METÁLICA TERMOACÚSTICA E = 30 MM, COM ATÉ 2 ÁGUAS, INCLUSO IÇAMENTO | E38: m² | F38: 96 | G38: =J38 -> 197.45 | H38: 248.609295 | I38: =ROUND(F38*H38,2) -> 23866.49 | J38: 197.45
A39: 15.28 | B39: Sinapi | C39: 94228 | D39: CALHA EM CHAPA DE AÇO GALVANIZADO NÚMERO 24, DESENVOLVIMENTO DE 50 CM, INCLUSO TRANSPORTE VERTICAL. AF_07/2019 | E39: m | F39: =16*1.1 -> 17.6 | G39: 90.88 | H39: 114.427008 | I39: =ROUND(F39*H39,2) -> 2013.92 | J39: 90.88
A40: 15.29 | D40: CONSTRUÇÃO CIVIL | I40: =SUM(I41:I42) -> 5921.16
A41: 15.30 | B41: Sinapi | C41: 91341 | D41: PORTA EM ALUMÍNIO DE ABRIR TIPO VENEZIANA COM GUARNIÇÃO, FIXAÇÃO COM PARAFUSOS - FORNECIMENTO E INSTALAÇÃO. | E41: m² | F41: 5.04 | G41: =J41 -> 518.46 | H41: 652.792986 | I41: =ROUND(F41*H41,2) -> 3290.08 | J41: 518.46
A42: 15.31 | B42: Sinapi | C42: 100674 | D42: CAIXILHO FIXO DE ALUMÍNIO PARA VIDRO (VIDRO INCLUSO), BATENTE/ REQUADRO DE 4 A 14 CM, SEM GUARNIÇÃO/ ALIZAR, FIXAÇÃO COM PARAFUSOS, VEDAÇÃO COM SILICONE, EXCLUSIVE CONTRAMARCO - FORNECIMENTO E INSTALAÇÃO. AF_11/2024 | E42: m² | F42: 3.75 | G42: 557.24 | H42: 701.620884 | I42: =ROUND(F42*H42,2) -> 2631.08 | J42: 557.24
A43: 15.32 | D43: INSTALAÇÕES PREDIAIS | I43: =SUM(I44:I47) -> 14924.53
A44: 15.33 | B44: CPU | C44: CPU001 | D44: =[1]CPU!$A$65 -> EXECUÇÃO DE INSTALAÇÕES HIDROSSANITÁRIAS, EXCLUSIVE EQUIPAMENTOS | E44: =[1]CPU!$I$78 -> cj | F44: 1 | G44: 3240.4 | H44: 4079.98764 | I44: =ROUND(F44*H44,2) -> 4079.99 | J44: =CPU!I43 -> 3240.4
A45: 15.34 | B45: SINAPI | C45: 98052 | D45: TANQUE SÉPTICO CIRCULAR, EM CONCRETO PRÉ-MOLDADO, DIÂMETRO INTERNO = 1,10 M, ALTURA INTERNA = 2,50 M, VOLUME ÚTIL: 2138,2 L (PARA 5 CONTRIBUINTES). | E45: UND | F45: 1 | G45: 2118.49 | H45: 2667.390759 | I45: =ROUND(F45*H45,2) -> 2667.39 | J45: 2118.49
A46: 15.35 | B46: SINAPI | C46: 98062 | D46: SUMIDOURO CIRCULAR, EM CONCRETO PRÉ-MOLDADO, DIÂMETRO INTERNO = 1,88 M, ALTURA INTERNA = 2,00 M, ÁREA DE INFILTRAÇÃO: 13,1 M² (PARA 5 CONTRIBUINTES) | E46: UND | F46: 1 | G46: 3166.84 | H46: 3987.368244 | I46: 3987.37 | J46: 3166.84
A47: 15.36 | B47: CPU | C47: CPU002 | D47: =[1]CPU!$A$78 -> EXECUÇÃO DE INSTALAÇÕES ELÉTRICAS, EXCLUSIVE EQUIPAMENTOS | E47: =[1]CPU!$I$78 -> cj | F47: 1 | G47: 3327.6 | H47: 4189.78116 | I47: 4189.78 | J47: =CPU!I56 -> 3327.6
A48: 15.37 | D48: SERVIÇOS DIVERSOS | I48: =SUM(I49:I53) -> 26952.04
A49: 15.38 | B49: CPU | C49: CPU003 | D49: =[1]CPU!$A$140 -> CORTE DE CONTAINER PARA ESQUADRIAS | E49: =[1]CPU!$I$140 -> m² | F49: 16.45 | G49: 187.1925 | H49: 235.6940768 | I49: =ROUND(F49*H49,2) -> 3877.17 | J49: =CPU!I74 -> 187.1925
A50: 15.39 | B50: CPU | C50: CPU004 | D50: =[1]CPU!$A$182 -> MODIFICAÇÕES NO CONTAINER COM CORTE POR ESMERILHADEIRA | E50: =[1]CPU!$I$182 -> m | F50: 58.26 | G50: 98.265 | H50: 123.7254615 | I50: 7208.25 | J50: =CPU!I116 -> 98.265
A51: 15.40 | B51: CPU | C51: CPU005 | D51: =[1]CPU!$A$200 -> MODIFICAÇÕES NO CONTAINER UNIÃO ATRAVÉS DO PROCESSO DE SOLDAGEM, INCLUSO IÇAMENTO DO CONTAINER | E51: =[1]CPU!$I$200 -> m | F51: 21.9 | G51: 394.419186 | H51: 496.6131971 | I51: 10875.83 | J51: =CPU!I138 -> 394.419186
A52: 15.41 | B52: CPU | C52: CPU011 | D52: GUARDA-CORPO DE AÇO CARBONO, MONTANTES TUBULARES DE 1.1/2" ESPAÇADOS EM 0,75M, ALTURA APROXIMADA DE 0,90M, PREPARADO COM FUNDO E TINTA EPÓXI NA COR AMARELA | E52: m | F52: =0.75*2*3*1.1 -> 4.95 | G52: 160.973173 | H52: 202.6813221 | I52: 1003.27 | J52: =CPU!I219 -> 160.973173
A53: 15.42 | B53: CPU | C53: CPU013 | D53: FORNECIMENTO E INSTALAÇÃO DE SUPORTE PARA CAIXA D'ÁGUA EM METALON | E53: un | F53: 1 | G53: 3166.958168 | H53: 3987.51703 | I53: 3987.52 | J53: =CPU!I282 -> 3166.958168
A54: 15.43 | D54: MATERIAIS | I54: =SUM(I55:I116) -> 121661.1
A55: 15.44 | B55: Cotação | D55: CONTAINER DRY BOX 20 PÉS 6,1X2,21X2,6 (COMPXLARGXALTU) | E55: un | F55: 2 | G55: 21728.75 | H55: =(G55*K$2) -> 24683.86 | I55: =ROUND(F55*H55,2) -> 49367.72 | J55: =CPU!I245 -> 21728.75
A56: 15.45 | B56: Sinapi | C56: 89356 | D56: TUBO PVC, SOLDAVEL, DN 25 MM, AGUA FRIA (NBR-5648) | E56: m | F56: 12 | G56: 26.33 | H56: =(G56*K$2) -> 29.91088 | I56: 358.93 | J56: 26.33
A57: 15.46 | B57: Sinapi | C57: 89357 | D57: TUBO PVC, SOLDAVEL, DN 32 MM, AGUA FRIA (NBR-5648) | E57: m | F57: 18 | G57: 36.44 | H57: 41.39584 | I57: 745.13 | J57: 36.44
A58: 15.47 | B58: Sinapi | C58: 9835 | D58: TUBO PVC SERIE NORMAL, DN 40 MM, PARA ESGOTO PREDIAL (NBR 5688) | E58: m | F58: 3 | G58: 7.82 | H58: 8.88352 | I58: 26.65 | J58: 7.82
A59: 15.48 | B59: Sinapi | C59: 9838 | D59: TUBO PVC SERIE NORMAL, DN 50 MM, PARA ESGOTO PREDIAL (NBR 5688) | E59: m | F59: 20 | G59: 12.91 | H59: =(G59*K$2) -> 14.66576 | I59: 293.32 | J59: 12.91
A60: 15.49 | B60: Sinapi | C60: 9836 | D60: TUBO PVC SERIE NORMAL, DN 100 MM, PARA ESGOTO PREDIAL (NBR 5688) | E60: m | F60: 1 | G60: 17.9 | H60: 20.3344 | I60: 20.33 | J60: 17.9
A61: 15.50 | B61: Sinapi | C61: 89362 | D61: JOELHO 90 GRAUS, PVC, SOLDÁVEL, DN 25MM, INSTALADO EM RAMAL OU SUB-RAMAL DE ÁGUA - FORNECIMENTO E INSTALAÇÃO. AF_06/2022 | E61: un | F61: 12 | G61: 10.47 | H61: 11.89392 | I61: 142.73 | J61: 10.47
A62: 15.51 | B62: Sinapi | C62: 89367 | D62: JOELHO 90 GRAUS, PVC, SOLDÁVEL, DN 32MM, INSTALADO EM RAMAL OU SUB-RAMAL DE ÁGUA - FORNECIMENTO E INSTALAÇÃO. AF_06/2022 | E62: un | F62: 10 | G62: 14.52 | H62: 16.49472 | I62: =ROUND(F62*H62,2) -> 164.95 | J62: 14.52
A63: 15.52 | B63: Sinapi | C63: 3515 | D63: JOELHO PVC, SOLDAVEL, COM BUCHA DE LATAO, 90 GRAUS, 20 MM X 1/2", PARA AGUA FRIA | E63: un | F63: 2 | G63: 7.81 | H63: 8.87216 | I63: =ROUND(F63*H63,2) -> 17.74 | J63: 7.81
A64: 15.53 | B64: Sinapi | C64: 7121 | D64: TE PVC, SOLDAVEL, COM BUCHA DE LATAO NA BOLSA CENTRAL, 90 GRAUS, 20 MM X 1/2", PARA AGUA FRIA PREDIAL | E64: un | F64: 2 | G64: 10.99 | H64: 12.48464 | I64: =ROUND(F64*H64,2) -> 24.97 | J64: 10.99
A65: 15.54 | B65: Sinapi | C65: 798 | D65: BUCHA DE REDUCAO PVC ROSCAVEL 3/4" X 1/2" | E65: un | F65: 2 | G65: 1.41 | H65: 1.60176 | I65: =ROUND(F65*H65,2) -> 3.2 | J65: 1.41
A66: 15.55 | B66: Sinapi | C66: 103957 | D66: BUCHA DE REDUÇÃO, CURTA, PVC, SOLDÁVEL, DN 32 X 25 MM, INSTALADO EM PRUMADA DE ÁGUA - FORNECIMENTO E INSTALAÇÃO. AF_06/2022 | E66: un | F66: 2 | G66: 5.39 | H66: 6.12304 | I66: 12.25 | J66: 5.39
A67: 15.56 | B67: Sinapi | C67: 3878 | D67: LUVA PVC, ROSCAVEL, 1 1/2", AGUA FRIA PREDIAL | E67: un | F67: 2 | G67: 14.34 | H67: 16.29024 | I67: 32.58 | J67: 14.34
A68: 15.57 | B68: Sinapi | C68: 4177 | D68: NIPLE DE FERRO GALVANIZADO, COM ROSCA BSP, DE 1/2" | E68: un | F68: 2 | G68: 5.64 | H68: 6.40704 | I68: 12.81 | J68: 5.64
A69: 15.58 | B69: Sinapi | C69: 89395 | D69: TE, PVC, SOLDÁVEL, DN 25MM, INSTALADO EM RAMAL OU SUB-RAMAL DE ÁGUA - FORNECIMENTO E INSTALAÇÃO. AF_06/2022 | E69: un | F69: 3 | G69: 14.43 | H69: 16.39248 | I69: 49.18 | J69: 14.43
A70: 15.59 | B70: Sinapi | C70: 89398 | D70: TE, PVC, SOLDÁVEL, DN 32MM, INSTALADO EM RAMAL OU SUB-RAMAL DE ÁGUA - FORNECIMENTO E INSTALAÇÃO. AF_06/2022 | E70: un | F70: 3 | G70: 20.3 | H70: 23.0608 | I70: 69.18 | J70: 20.3
A71: 15.60 | B71: Sinapi | C71: 97 | D71: ADAPTADOR PVC SOLDAVEL, COM FLANGE E ANEL DE VEDACAO, 32 MM X 1", PARA CAIXA D'AGUA | E71: un | F71: 4 | G71: 22.23 | H71: 25.25328 | I71: 101.01 | J71: 22.23
A72: 15.61 | B72: Sinapi | C72: 11675 | D72: REGISTRO DE ESFERA, PVC, COM VOLANTE, VS, SOLDAVEL, DN 32 MM, | E72: un | F72: 4 | G72: 36.25 | H72: 41.18 | I72: 164.72 | J72: 36.25
A73: 15.62 | B73: Sinapi | C73: 34637 | D73: CAIXA D'AGUA / RESERVATORIO EM POLIETILENO, 500 LITROS, COM TAMPA | E73: un | F73: 1 | G73: 309.02 | H73: 351.04672 | I73: 351.05 | J73: 309.02
A74: 15.63 | B74: Sinapi | C74: 94495 | D74: REGISTRO DE GAVETA BRUTO, LATÃO, ROSCÁVEL, 1" - FORNECIMENTO E INSTALAÇÃO. AF_08/2021 | E74: un | F74: 1 | G74: 46.79 | H74: 53.15344 | I74: 53.15 | J74: 46.79
A75: 15.64 | B75: Sinapi | C75: 94496 | D75: REGISTRO DE GAVETA BRUTO, LATÃO, ROSCÁVEL, 1 1/4" - FORNECIMENTO E INSTALAÇÃO. AF_08/2021 | E75: un | F75: 2 | G75: 66.75 | H75: 75.828 | I75: 151.66 | J75: 66.75
A76: 15.65 | B76: Sinapi | C76: 7603 | D76: TORNEIRA DE METAL AMARELO, PARA TANQUE / JARDIM, DE PAREDE, SEM BICO, CANO CURTO, PADRAO POPULAR / USO GERA | E76: un | F76: 2 | G76: 25.98 | H76: 29.51328 | I76: 59.03 | J76: 25.98
A77: 15.66 | B77: Sinapi | C77: 94795 | D77: TORNEIRA DE BOIA PARA CAIXA D'ÁGUA, ROSCÁVEL, 1/2" - FORNECIMENTO E INSTALAÇÃO. AF_08/2021 | E77: un | F77: 1 | G77: 35.12 | H77: 39.89632 | I77: 39.9 | J77: 35.12
A78: 15.67 | B78: Sinapi | C78: 20080 | D78: ADESIVO PLASTICO PARA PVC, FRASCO COM 175 GR | E78: un | F78: 2 | G78: 23.48 | H78: 26.67328 | I78: =ROUND(F78*H78,2) -> 53.35 | J78: 23.48
A79: 15.68 | B79: Sinapi | C79: 3143 | D79: FITA VEDA ROSCA 18MMX25M | E79: un | F79: 1 | G79: 7.73 | H79: 8.78128 | I79: =ROUND(F79*H79,2) -> 8.78 | J79: 7.73
A80: 15.69 | B80: Sinapi | C80: 35277 | D80: CAIXA DE GORDURA EM PVC, DIAMETRO MINIMO 300 MM, DIAMETRO DE SAIDA 100 MM CAPACIDADE APROXIMADA 18 LITROS, COM TAMPA E CESTO | E80: un | F80: 1 | G80: 418.74 | H80: 475.68864 | I80: =ROUND(F80*H80,2) -> 475.69 | J80: 418.74
A81: 15.70 | B81: Sinapi | C81: 11735 | D81: PROLONGADOR PAR CAIXA DE GORDURA E INSPEÇÃO DN300, PVC | E81: un | F81: 1 | G81: 10.43 | H81: 11.84848 | I81: =ROUND(F81*H81,2) -> 11.85 | J81: 10.43
A82: 15.71 | B82: Sinapi | C82: 89482 | D82: CAIXA SIFONADA, PVC, DN 100 X 100 X 50 MM, FORNECIDA E INSTALADA EM RAMAIS DE ENCAMINHAMENTO DE ÁGUA PLUVIAL. AF_06/2022 | E82: un | F82: 5 | G82: 44.17 | H82: 50.17712 | I82: =ROUND(F82*H82,2) -> 250.89 | J82: 44.17
A83: 15.72 | B83: Sinapi | C83: 94679 | D83: CURVA 90 GRAUS, PVC, SOLDÁVEL, DN 50 MM, INSTALADO EM RESERVAÇÃO DE ÁGUA DE EDIFICAÇÃO QUE POSSUA RESERVATÓRIO DE FIBRA/FIBROCIMENTO FORNECIMENTO E INSTALAÇÃO. AF_06/2016 | E83: un | F83: 11 | G83: 26.35 | H83: 29.9336 | I83: 329.27 | J83: 26.35
A84: 15.73 | B84: Sinapi | C84: 89504 | D84: CURVA 45 GRAUS, PVC, SOLDÁVEL, DN 50MM, INSTALADO EM PRUMADA DE ÁGUA - FORNECIMENTO E INSTALAÇÃO. AF_06/2022 | E84: un | F84: 3 | G84: 21.12 | H84: 23.99232 | I84: 71.98 | J84: 21.12
A85: 15.74 | B85: Sinapi | C85: 89724 | D85: JOELHO 90 GRAUS, PVC, SERIE NORMAL, ESGOTO PREDIAL, DN 40 MM, JUNTA SOLDÁVEL, FORNECIDO E INSTALADO EM RAMAL DE DESCARGA OU RAMAL DE ESGOTO SANITÁRIO. AF_08/2022 | E85: un | F85: 1 | G85: 11.47 | H85: 13.02992 | I85: 13.03 | J85: 11.47
A86: 15.75 | B86: Sinapi | C86: 89731 | D86: JOELHO 90 GRAUS, PVC, SERIE NORMAL, ESGOTO PREDIAL, DN 50 MM, JUNTA ELÁSTICA, FORNECIDO E INSTALADO EM RAMAL DE DESCARGA OU RAMAL DE ESGOTO SANITÁRIO. AF_08/2022 | E86: un | F86: 8 | G86: 18.3 | H86: 20.7888 | I86: 166.31 | J86: 18.3
A87: 15.76 | B87: Sinapi | C87: 89563 | D87: JUNÇÃO SIMPLES, PVC, SERIE R, ÁGUA PLUVIAL, DN 50 MM, JUNTA ELÁSTICA, FORNECIDO E INSTALADO EM RAMAL DE ENCAMINHAMENTO. AF_06/2022 | E87: un | F87: 2 | G87: 42.86 | H87: 48.68896 | I87: 97.38 | J87: 42.86
A88: 15.77 | B88: Sinapi | C88: 103995 | D88: LUVA, PVC, SOLDÁVEL, DN 50MM, INSTALADO EM RAMAL DE DISTRIBUIÇÃO DE ÁGUA - FORNECIMENTO E INSTALAÇÃO. AF_06/2022 | E88: un | F88: 17 | G88: 16.73 | H88: 19.00528 | I88: 323.09 | J88: 16.73
A89: 15.78 | B89: Sinapi | C89: 104345 | D89: JUNÇÃO DE REDUÇÃO INVERTIDA, PVC, SÉRIE NORMAL, ESGOTO PREDIAL, DN 100 X 50 MM, JUNTA ELÁSTICA, FORNECIDO E INSTALADO EM RAMAL DE DESCARGA OU RAMAL DE ESGOTO SANITÁRIO. AF_08/2022 | E89: un | F89: 2 | G89: 52.49 | H89: 59.62864 | I89: 119.26 | J89: 52.49
A90: 15.79 | B90: Sinapi | C90: 20043 | D90: REDUÇÃO EXCÊNTRICA, PVC, ÁGUA PLUVIAL, DN 100 X 50 MM, LINHA NORMAL | E90: un | F90: 2 | G90: 10.78 | H90: 12.24608 | I90: =ROUND(F90*H90,2) -> 24.49 | J90: 10.78
A91: 15.80 | B91: Sinapi | C91: 86883 | D91: SIFÃO DO TIPO FLEXÍVEL EM PVC 1 X 1.1/2 - FORNECIMENTO E INSTALAÇÃO. AF_01/2020 | E91: un | F91: 1 | G91: 13.3 | H91: 15.1088 | I91: 15.11 | J91: 13.3
A92: 15.81 | B92: Sinapi | C92: 86941 | D92: LAVATÓRIO LOUÇA BRANCA COM COLUNA, 45 X 55CM OU EQUIVALENTE, PADRÃO MÉDIO, INCLUSO SIFÃO TIPO GARRAFA, VÁLVULA E ENGATE FLEXÍVEL DE 40CM EMMETAL CROMADO, COM TORNEIRA CROMADA DE MESA, PADRÃO MÉDIO - FORNECIMENTO E INSTALAÇÃO. | E92: un | F92: 1 | G92: 807.36 | H92: 917.16096 | I92: 917.16 | J92: 807.36
A93: 15.82 | B93: Sinapi | C93: 86936 | D93: CUBA DE EMBUTIR DE AÇO INOXIDÁVEL MÉDIA, INCLUSO VÁLVULA TIPO AMERICANA E SIFÃO TIPO GARRAFA EM METAL CROMADO - FORNECIMENTO E INSTALAÇÃO | E93: un | F93: 1 | G93: 483.55 | H93: 549.3128 | I93: 549.31 | J93: 483.55
A94: 15.83 | B94: Cotação | D94: LAVADOR DE BOTAS EM AÇO INOXIDÁVEL AISI 304 | E94: un | F94: 1 | G94: 2944.913333 | H94: 3345.421547 | I94: 3345.42 | J94: =O94 -> 2944.913333 | L94: 3719.28 | M94: 2430.46 | N94: 2685 | O94: =AVERAGE(L94:N94) -> 2944.913333
A95: 15.84 | B95: Sinapi | C95: 86906 | D95: TORNEIRA CROMADA DE MESA, 1/2 OU 3/4, PARA LAVATÓRIO, PADRÃO POPULAR - FORNECIMENTO E INSTALAÇÃO. AF_01/2020 | E95: un | F95: 2 | G95: 51.71 | H95: 58.74256 | I95: 117.49 | J95: 51.71
A96: 15.85 | B96: Sinapi | C96: 94768 | D96: ADAPTADOR COM FLANGE E ANEL DE VEDAÇÃO, CPVC, ROSCÁVEL, DN 42 MM, INSTALADO EM RESERVAÇÃO DE ÁGUA DE EDIFICAÇÃO QUE POSSUA RESERVATÓRIO DE FIBRA/FIBROCIMENTO - FORNECIMENTO E INSTALAÇÃO. AF_06/2016 | E96: un | F96: 1 | G96: 76.17 | H96: 86.52912 | I96: 86.53 | J96: 76.17
A97: 15.86 | B97: Cotação | D97: PEDALEIRA PARA ACIONAMENTO TORNEIRA, ROSCA 1/2" | E97: un | F97: 2 | G97: 145.3966667 | H97: 165.1706133 | I97: 330.34 | J97: =O97 -> 145.3966667 | L97: 133.4 | M97: 137.89 | N97: 164.9 | O97: =AVERAGE(L97:N97) -> 145.3966667
A98: 15.87 | B98: Sinapi | C98: 91924 | D98: CABO DE COBRE FLEXÍVEL ISOLADO, 1,5 MM², ANTI-CHAMA 450/750 V, PARA CIRCUITOS TERMINAIS - FORNECIMENTO E INSTALAÇÃO. AF_03/2023 | E98: m | F98: 49 | G98: 3.34 | H98: 3.79424 | I98: 185.92 | J98: 3.34
A99: 15.88 | B99: Sinapi | C99: 91926 | D99: CABO DE COBRE, RIGIDO, CLASSE 2, ISOLACAO EM PVC/A, ANTICHAMA BWF-B, 1 CONDUTOR, 450/750 V, SECAO NOMINAL 2,5 MM2 | E99: m | F99: 180 | G99: 4.86 | H99: 5.52096 | I99: 993.77 | J99: 4.86
A100: 15.89 | B100: Sinapi | C100: 91952 | D100: INTERRUPTOR SIMPLES (1 MÓDULO), 10A/250V, SEM SUPORTE E SEM PLACA - FORNECIMENTO E INSTALAÇÃO. AF_03/2023 | E100: un | F100: 4 | G100: 20.16 | H100: 22.90176 | I100: 91.61 | J100: 20.16
A101: 15.90 | B101: Sinapi | C101: 91990 | D101: TOMADA ALTA DE EMBUTIR (1 MÓDULO), 2P+T 10 A, SEM SUPORTE E SEM PLACA - FORNECIMENTO E INSTALAÇÃO. AF_03/2023 | E101: un | F101: 1 | G101: 37.06 | H101: 42.10016 | I101: 42.1 | J101: 37.06
A102: 15.91 | B102: ORSE | C102: 11054/ORSE | D102: CAIXA METÁLICA COM UMA TOMADA 2P+T PARA INSTALAÇÃO APARENTE | E102: un | F102: 10 | G102: 27.17 | H102: 30.86512 | I102: 308.65 | J102: 27.17
A103: 15.92 | B103: Sinapi | C103: 95777 | D103: CONDULETE DE ALUMÍNIO, TIPO B, PARA ELETRODUTO DE AÇO GALVANIZADO DN 20 MM (3/4''), APARENTE - FORNECIMENTO E INSTALAÇÃO. AF_10/2022 | E103: un | F103: 5 | G103: 28.91 | H103: 32.84176 | I103: 164.21 | J103: 28.91
A104: 15.93 | B104: Sinapi | C104: 101890 | D104: DISJUNTOR MONOPOLAR TIPO NEMA, CORRENTE NOMINAL DE 10 ATÉ 30A - FORNECIMENTO E INSTALAÇÃO. AF_10/2020 | E104: un | F104: 1 | G104: 16.3 | H104: 18.5168 | I104: 18.52 | J104: 16.3
A105: 15.94 | B105: Sinapi | C105: 101892 | D105: DISJUNTOR MONOPOLAR TIPO NEMA, CORRENTE NOMINAL DE 10 ATÉ 50A - FORNECIMENTO E INSTALAÇÃO. AF_10/2020 | E105: un | F105: 7 | G105: =J105 -> 71.15 | H105: 80.8264 | I105: 565.78 | J105: 71.15
A106: 15.95 | B106: ORSE | C106: 07943/ORSE | D106: DISJUNTOR BIPOLAR DR 25A - DISPOSITIVO DIFERENCIAL RESIDUAL, TIPO AC, 30MA | E106: un | F106: 3 | G106: 278.5 | H106: 316.376 | I106: 949.13 | J106: 278.5
A107: 15.96 | B107: Sinapi | C107: 93661 | D107: DISJUNTOR BIPOLAR TIPO DIN, CORRENTE NOMINAL DE 16A - FORNECIMENTO E INSTALAÇÃO. AF_10/2020 | E107: un | F107: 2 | G107: 57.59 | H107: 65.42224 | I107: 130.84 | J107: 57.59
A108: 15.97 | B108: Sinapi | C108: 93665 | D108: DISJUNTOR BIPOLAR TIPO DIN, CORRENTE NOMINAL DE 40A - FORNECIMENTO E INSTALAÇÃO. AF_10/2020 | E108: un | F108: 1 | G108: 68.02 | H108: 77.27072 | I108: 77.27 | J108: 68.02
A109: 15.98 | B109: ORSE | C109: 04878/ORSE | D109: PONTO DE LUZ EM TETO OU PAREDE, APARENTE SEM ELETRODUTO | E109: un | F109: 5 | G109: 65.23 | H109: 74.10128 | I109: 370.51 | J109: 65.23
A110: 15.99 | B110: ORSE | C110: 14448/ORSE | D110: ELETRODUTO DE AÇO GALVANIZADO LEVE, INCLUSIVE CONEXÕES, SUPORTES E FIXAÇÃO DN 20 (3/4") | E110: m | F110: 50 | G110: 33.67 | H110: 38.24912 | I110: 1912.46 | J110: 33.67
A111: 15.100 | B111: Sinapi | C111: 1879 | D111: CURVA 90° PVC ELETRODUTO ROSCAVEL 3/4" | E111: un | F111: 16 | G111: 3.44 | H111: 3.90784 | I111: 62.53 | J111: 3.44
A112: 15.101 | B112: Sinapi | C112: 39128 | D112: ABRAÇADEIRA GALVANIZADA "D" PARA ELETRODUTO 3/4" COM CUNHA | E112: un | F112: 50 | G112: 2.5 | H112: 2.84 | I112: 142 | J112: 2.5
A113: 15.102 | B113: Sinapi | C113: 101878 | D113: QUADRO DE DISTRIBUIÇÃO DE ENERGIA EM CHAPA DE AÇO GALVANIZADO, DE SOBREPOR, COM BARRAMENTO TRIFÁSICO, PARA 18 DISJUNTORES DIN 100A - FORNECIMENTO E INSTALAÇÃO. AF_10/2020 | E113: un | F113: 1 | G113: 498.14 | H113: 565.88704 | I113: 565.89 | J113: 498.14
A114: 15.103 | B114: Sinapi | C114: 100954 | D114: TRANSPORTE COM CAMINHÃO CARROCERIA COM GUINDAUTO (MUNCK), MOMENTO MÁXIMO DE CARGA 11,7 TM, EM VIA INTERNA (DENTRO DO CANTEIRO - UNIDADE: TXKM). AF_07/2020 | E114: TXKM | F114: 800 | G114: 9.25 | H114: 10.508 | I114: =ROUND(F114*H114,2) -> 8406.4 | J114: 9.25
A115: 15.104 | B115: CPU | C115: CPU006 | D115: REVESTIMENTO DE PAREDES EM CHAPAS DE AÇO INOXIDÁVEL AISI 304 - APENAS INSTALAÇÃO | E115: =[1]CPU!$I$140 -> m² | F115: 70.54 | G115: 358.536 | H115: 407.296896 | I115: =ROUND(F115*H115,2) -> 28730.72 | J115: =CPU!I150 -> 358.536
A116: 15.105 | B116: CPU | C116: CPU008 | D116: CHAPA XADREZ EM ALUMINIO PARA PISO e:3mm, INCLUSO REBITE PARA FIXAÇÃO - APENAS MÃO DE OBRA | E116: =[1]CPU!$I$140 -> m² | F116: 29.9 | G116: 540.9424 | H116: 614.5105664 | I116: =ROUND(F116*H116,2) -> 18373.87 | J116: =CPU!I180 -> 540.9424

Sheet UBF
A1: MINISTÉRIO DA INTEGRAÇÃO E DO DESENVOLVIMENTO REGIONAL | J1: BDI serviç | K1: 1.2591
A2: COMPANHIA DE DESENVOLVIMENTO DOS VALES DO SÃO FRANCISCO E DO PARNAÍBA | J2: BDI fornec. | K2: 1.136
A3: SEDE
A4: PLANILHA ORÇAMENTÁRIA DE ESTIMATIVA GERAL PARA O ESTADO DO PARÁ | H4: Base SINAPI-PA 03-2025 ORSE 02-2025
H5: Data: Maio - 2025
A7: Item | B7: Base | C7: Código | D7: Descrição | E7: Unid. | F7: Quant. | G7: Valor (R$)
G8: Unit. (sem BDI) | H8: Unit. (com BDI) | I8: Total
A10: 16 | D10: UNIDADE DE BENEFICIAMENTO DE FRUTOS | I10: =SUM(I11,I14,I20,I25,I31,I33,I37,I43,I48,I55) -> 389718.6843
A11: 16.1 | D11: SERVIÇOS PRELIMINARES | I11: =SUM(I12:I13) -> 5313.41
A12: 16.2 | B12: Sinapi | C12: 105009 | D12: =[1]CPU!$A$91 -> LOCAÇÃO DE OBRAS | E12: m | F12: =15+10+15+10 -> 50 | G12: =J12 -> 82.33 | H12: =(G12*K$1) -> 103.661703 | I12: =ROUND(F12*H12,2) -> 5183.09 | J12: 82.33
A13: 16.3 | B13: Sinapi | C13: 98525 | D13: LIMPEZA MECANIZADA DE CAMADA VEGETAL, VEGETAÇÃO E PEQUENAS ÁRVORES (DIÂMETRO DE TRONCO MENOR QUE 0,20 M), COM TRATOR DE ESTEIRAS. | E13: m² | F13: =15*10 -> 150 | G13: =J13 -> 0.69 | H13: =(G13*K$1) -> 0.868779 | I13: =ROUND(F13*H13,2) -> 130.32 | J13: 0.69
A14: 16.4 | D14: MOVIMENTO DE TERRA | I14: =SUM(I15:I19) -> 3214.09
A15: 16.5 | B15: Sinapi | C15: 101230 | D15: ESCAVAÇÃO VERTICAL A CÉU ABERTO, EM OBRAS DE INFRAESTRUTURA, INCLUINDO CARGA, DESCARGA E TRANSPORTE, EM SOLO DE 1ª CATEGORIA COM ESCAVADEIRA HIDRÁULICA (CAÇAMBA: 0,8 M³ / 111 HP) | E15: m³ | F15: 54.76 | G15: =J15 -> 11.91 | H15: =G15*$K$1 -> 14.995881 | I15: =ROUND(F15*H15,2) -> 821.17 | J15: 11.91
A16: 16.6 | B16: Sinapi | C16: 100577 | D16: REGULARIZAÇÃO E COMPACTAÇÃO DE SUBLEITO DE SOLO PREDOMINANTEMENTE ARENOSO. | E16: m² | F16: 150 | G16: 0.53 | H16: =G16*$K$1 -> 0.667323 | I16: =ROUND(F16*H16,2) -> 100.1 | J16: 0.53
A17: 16.7 | B17: Sinapi | C17: 96385 | D17: EXECUÇÃO E COMPACTAÇÃO DE ATERRO COM SOLO PREDOMINANTEMENTE ARGILOSO - EXCLUSIVE SOLO, ESCAVAÇÃO, CARGA E TRANSPORTE | E17: m³ | F17: 75 | G17: 13.09 | H17: =G17*$K$1 -> 16.481619 | I17: =ROUND(F17*H17,2) -> 1236.12 | J17: 13.09
A18: 16.8 | B18: Sinapi | C18: 100574 | D18: ESPALHAMENTO DE MATERIAL COM TRATOR DE ESTEIRAS. | E18: m³ | F18: 75 | G18: 1.46 | H18: =G18*$K$1 -> 1.838286 | I18: =ROUND(F18*H18,2) -> 137.87 | J18: 1.46
A19: 16.9 | B19: Sinapi | C19: 100973 | D19: CARGA, MANOBRA E DESCARGA DE SOLOS E MATERIAIS GRANULARES EM CAMINHÃO BASCULANTE 6 M³ - CARGA COM PÁ CARREGADEIRA (CAÇAMBA DE 1,7 A 2,8 M³ /128 HP) E DESCARGA LIVRE | E19: m³ | F19: 75 | G19: 9.73 | H19: =G19*$K$1 -> 12.251043 | I19: =ROUND(F19*H19,2) -> 918.83 | J19: 9.73
A20: 16.10 | D20: FUNDAÇÕES/ ESTRUTURAS DE CONCRETO ARMADO | I20: =SUM(I21:I24) -> 19323.38432
A21: 16.11 | B21: Sinapi | C21: 92802 | D21: CORTE E DOBRA DE AÇO CA-50, DIÂMETRO DE 8,0 MM | E21: kg | F21: 101.6 | G21: =J21 -> 11.21 | H21: =G21*K1 -> 14.114511 | I21: =H21*F21 -> 1434.034318 | J21: 11.21
A22: 16.12 | B22: Sinapi | C22: 94965 | D22: CONCRETO FCK = 25MPA, TRAÇO 1:2,3:2,7 (CIMENTO/ AREIA MÉDIA/ BRITA 1) - PREPARO MECÂNICO COM BETONEIRA 400 L. | E22: m³ | F22: 17 | G22: 724.66 | H22: =G22*K1 -> 912.419406 | I22: =ROUND(F22*H22,2) -> 15511.13 | J22: 724.66
A23: 16.13 | B23: Sinapi | C23: 103673 | D23: LANÇAMENTO COM USO DE BOMBA, ADENSAMENTO E ACABAMENTO DE CONCRETO EM ESTRUTURAS. AF_02/2022 | E23: m³ | F23: 17 | G23: 47.62 | H23: =G23*K1 -> 59.958342 | I23: =ROUND(F23*H23,2) -> 1019.29 | J23: 47.62
A24: 16.14 | B24: Sinapi | C24: 97086 | D24: FABRICAÇÃO, MONTAGEM E DESMONTAGEM DE FORMA PARA RADIER, EM MADEIRA SERRADA, 4 UTILIZAÇÕES. | E24: m² | F24: 7.8 | G24: 138.37 | H24: =G24*K$1 -> 174.221667 | I24: =ROUND(F24*H24,2) -> 1358.93 | J24: 138.37
A25: 16.15 | D25: ALVENARIAS, DIVISÓRIAS E FECHAMENTOS | I25: =SUM(I26:I30) -> 64890.85
A26: 16.16 | B26: CPU | C26: CPU010 | D26: REVESTIMENTO DE PAREDES EM CHAPAS DE AÇO INOXIDÁVEL AISI 304 - APENAS INSTALAÇÃO | E26: m² | F26: 160.29 | G26: =J26 -> 49.76 | H26: =G26*K$1 -> 62.652816 | I26: =ROUND(F26*H26,2) -> 10042.62 | J26: =CPU!I205 -> 49.76
A27: 16.17 | B27: ORSE | C27: 10280/ORSE | D27: MANTA EM LÃ DE VIDRO | E27: m² | F27: 134.78 | G27: 15.05 | H27: =G27*K$1 -> 18.949455 | I27: =ROUND(F27*H27,2) -> 2554.01 | J27: 15.05
A28: 16.18 | B28: CPU | C28: CPU009 | D28: CHAPA XADREZ EM ALUMINIO PARA PISO e:3mm, INCLUSO REBITE PARA FIXAÇÃO - APENAS INSTALAÇÃO | E28: m² | F28: 56.544 | G28: 435.6709 | H28: 548.5532302 | I28: =ROUND(F28*H28,2) -> 31017.39 | J28: =CPU!I192 -> 435.6709
A29: 16.19 | B29: Sinapi | C29: 104723 | D29: PAREDE COM SISTEMA EM CHAPAS DE GESSO PARA DRYWALL, USO INTERNO, COM DUAS FACES DUPLAS E ESTRUTURA METÁLICA COM GUIAS DUPLAS PARA PAREDES COM ÁREA LÍQUIDA MENOR QUE 6 M2, COM VÃOS. | E29: m² | F29: 42.8 | G29: 290.19 | H29: 365.378229 | I29: =ROUND(F29*H29,2) -> 15638.19 | J29: 290.19
A30: 16.20 | B30: Sinapi | C30: 96486 | D30: FORRO EM RÉGUAS DE PVC, LISO, PARA AMBIENTES COMERCIAIS, INCLUSIVE ESTRUTURA BIDIRECIONAL DE FIXAÇÃO | E30: m² | F30: 54.112 | G30: 82.76 | H30: 104.203116 | I30: =ROUND(F30*H30,2) -> 5638.64 | J30: 82.76
A31: 16.21 | D31: PINTURAS | I31: =SUM(I32:I32) -> 14065.26
A32: 16.22 | B32: Sinapi | C32: 100751 | D32: PINTURA COM TINTA EPOXÍDICA DE ACABAMENTO PULVERIZADA SOBRE PERFIL METÁLICO EXECUTADO EM FÁBRICA (02 DEMÃOS). | E32: m² | F32: 263.9 | G32: =J32 -> 42.33 | H32: =G32*K$1 -> 53.297703 | I32: =ROUND(F32*H32,2) -> 14065.26 | J32: 42.33
A33: 16.23 | D33: COBERTURAS | I33: =SUM(I34:I36) -> 40594.05
A34: 16.24 | B34: ORSE | C34: 13874/ORSE | D34: ESTRUTURA METALICA P/ COBERTURA DE CRECHE PADRÃO 1 DO PADRÃO FNDE, EM LIGTH STEEL FRAME, COM PERFIS UE70 MONTANTES DE TUBO UE70, INCLUSIVE FORNECIMENTO E MONTAGEM. EXCLUSIVE TELHAS | E34: m² | F34: 98.42 | G34: =J34 -> 113.51 | H34: =(G34*K$1) -> 142.920441 | I34: =ROUND(F34*H34,2) -> 14066.23 | J34: 113.51
A35: 16.25 | B35: Sinapi | C35: 94216 | D35: TELHAMENTO COM TELHA METÁLICA TERMOACÚSTICA E = 30 MM, COM ATÉ 2 ÁGUAS, INCLUSO IÇAMENTO | E35: m² | F35: 98.42 | G35: =J35 -> 197.45 | H35: =G35*K$1 -> 248.609295 | I35: =ROUND(F35*H35,2) -> 24468.13 | J35: 197.45
A36: 16.26 | B36: Sinapi | C36: 94228 | D36: CALHA EM CHAPA DE AÇO GALVANIZADO NÚMERO 24, DESENVOLVIMENTO DE 50 CM, INCLUSO TRANSPORTE VERTICAL. AF_07/2019 | E36: m | F36: 18 | G36: 90.88 | H36: 114.427008 | I36: =ROUND(F36*H36,2) -> 2059.69 | J36: 90.88
A37: 16.27 | D37: CONSTRUÇÃO CIVIL | I37: =SUM(I38:I40) -> 10941.58
A38: 16.28 | B38: Sinapi | C38: 100702 | D38: PORTA DE CORRER DE ALUMÍNIO, COM DUAS FOLHAS PARA VIDRO, INCLUSO VIDRO LISO INCOLOR, FECHADURA E PUXADOR, SEM ALIZAR. | E38: m² | F38: 4.85 | G38: 364.63 | H38: 459.105633 | I38: =ROUND(F38*H38,2) -> 2226.66 | J38: 364.63
A39: 16.29 | B39: Sinapi | C39: 91341 | D39: PORTA EM ALUMÍNIO DE ABRIR TIPO VENEZIANA COM GUARNIÇÃO, FIXAÇÃO COM PARAFUSOS - FORNECIMENTO E INSTALAÇÃO. | E39: m² | F39: 3.8 | G39: 518.46 | H39: 652.792986 | I39: =ROUND(F39*H39,2) -> 2480.61 | J39: 518.46
A40: 16.30 | B40: Sinapi | C40: 100674 | D40: CAIXILHO FIXO DE ALUMÍNIO PARA VIDRO (VIDRO INCLUSO), BATENTE/ REQUADRO DE 4 A 14 CM, SEM GUARNIÇÃO/ ALIZAR, FIXAÇÃO COM PARAFUSOS, VEDAÇÃO COM SILICONE, EXCLUSIVE CONTRAMARCO - FORNECIMENTO E INSTALAÇÃO. AF_11/2024 | E40: m² | F40: 8.85 | G40: 559.48 | H40: 704.441268 | I40: =ROUND(F40*H40,2) -> 6234.31 | J40: 559.48
A41: 16.31 | B41: CPU | C41: CPU007 | D41: REVESTIMENTO CERÂMICO PARA PISO COM PLACAS TIPO ESMALTADA DE DIMENSÕES 45x45cm COM ARGAMASSA AC III | E41: m² | F41: 60 | G41: 99.714818 | H41: 125.5509273 | I41: =ROUND(F41*H41,2) -> 7533.06 | J41: =CPU!I169 -> 99.714818
A42: 16.32 | B42: Sinapi | C42: 94228 | D42: CALHA EM CHAPA DE AÇO GALVANIZADO NÚMERO 24, DESENVOLVIMENTO DE 50 CM, INCLUSO TRANSPORTE VERTICAL. AF_07/2019 | E42: m | F42: 24 | G42: 90.88 | H42: 114.427008 | I42: =ROUND(F42*H42,2) -> 2746.25 | J42: 90.88
A43: 16.33 | D43: INSTALAÇÕES PREDIAIS | I43: =SUM(I44:I45) -> 8269.77
A44: 16.34 | B44: CPU | C44: CPU001 | D44: =[2]CPU!$A$65 -> EXECUÇÃO DE INSTALAÇÕES HIDROSSANITÁRIAS, EXCLUSIVE EQUIPAMENTOS | E44: =[2]CPU!$I$78 -> cj | F44: 1 | G44: 3240.4 | H44: 4079.98764 | I44: =ROUND(F44*H44,2) -> 4079.99 | J44: =CPU!I43 -> 3240.4
A45: 16.35 | B45: CPU | C45: CPU002 | D45: =[2]CPU!$A$78 -> EXECUÇÃO DE INSTALAÇÕES ELÉTRICAS, EXCLUSIVE EQUIPAMENTOS | E45: =[2]CPU!$I$78 -> cj | F45: 1 | G45: 3327.6 | H45: 4189.78116 | I45: =ROUND(F45*H45,2) -> 4189.78 | J45: =CPU!I56 -> 3327.6
A46: 16.36 | B46: SINAPI | C46: 98052 | D46: TANQUE SÉPTICO CIRCULAR, EM CONCRETO PRÉ-MOLDADO, DIÂMETRO INTERNO = 1,10 M, ALTURA INTERNA = 2,50 M, VOLUME ÚTIL: 2138,2 L (PARA 5 CONTRIBUINTES). | E46: un | F46: 1 | G46: 2118.49 | H46: 2667.390759 | I46: 2667.39 | J46: 2118.49
A47: 16.37 | B47: SINAPI | C47: 98062 | D47: SUMIDOURO CIRCULAR, EM CONCRETO PRÉ-MOLDADO, DIÂMETRO INTERNO = 1,88 M, ALTURA INTERNA = 2,00 M, ÁREA DE INFILTRAÇÃO: 13,1 M² (PARA 5 CONTRIBUINTES) | E47: un | F47: 1 | G47: 3166.84 | H47: 3987.368244 | I47: 3987.37 | J47: 3166.84
A48: 16.38 | D48: SERVIÇOS DIVERSOS | I48: =SUM(I49:I54) -> 37106.16
A49: 16.39 | B49: CPU | C49: CPU003 | D49: =[2]CPU!$A$140 -> CORTE DE CONTAINER PARA ESQUADRIAS | E49: =[2]CPU!$I$140 -> m² | F49: 12.65 | G49: 187.1925 | H49: 235.6940768 | I49: =ROUND(F49*H49,2) -> 2981.53 | J49: =CPU!I74 -> 187.1925
A50: 16.40 | B50: CPU | C50: CPU004 | D50: =[2]CPU!$A$182 -> MODIFICAÇÕES NO CONTAINER COM CORTE POR ESMERILHADEIRA | E50: =[2]CPU!$I$182 -> m | F50: 57.68 | G50: 98.265 | H50: 123.7254615 | I50: 7136.48 | J50: =CPU!I116 -> 98.265
A51: 16.41 | B51: CPU | C51: CPU005 | D51: =[2]CPU!$A$200 -> MODIFICAÇÕES NO CONTAINER UNIÃO ATRAVÉS DO PROCESSO DE SOLDAGEM, INCLUSO IÇAMENTO DO CONTAINER | E51: =[2]CPU!$I$200 -> m | F51: 40.8 | G51: 394.419186 | H51: 496.6131971 | I51: 20261.82 | J51: =CPU!I138 -> 394.419186
A52: 16.42 | B52: Orse | C52: 00900/ORSE | D52: ESCADA DE FERRO COM GUARDA-CORPO | E52: m | F52: 0.9 | G52: 1472.16 | H52: 1853.596656 | I52: 1668.24 | J52: 1472.16
A53: 16.43 | B53: CPU | C53: CPU011 | D53: GUARDA-CORPO DE AÇO CARBONO, MONTANTES TUBULARES DE 1.1/2" ESPAÇADOS EM 0,75M, ALTURA APROXIMADA DE 0,90M, PREPARADO COM FUNDO E TINTA EPÓXI NA COR AMARELA | E53: m | F53: 1.9 | G53: 447.5065063 | H53: 563.4554421 | I53: 1070.57 | J53: =CPU!I228 -> 447.5065063
A54: 16.44 | B54: CPU | C54: CPU013 | D54: FORNECIMENTO E INSTALAÇÃO DE SUPORTE PARA CAIXA D'ÁGUA EM METALON | E54: un | F54: 1 | G54: 3166.958168 | H54: 3987.51703 | I54: 3987.52 | J54: =CPU!I282 -> 3166.958168
A55: 16.45 | D55: MATERIAIS | I55: =SUM(I56:I104) -> 186000.13
A56: 16.46 | B56: Cotação | D56: CONTAINER HIGH CUBE 40 PÉS 12,2X2,3X2,9 (COMPXLARGXALTU) | E56: un | F56: 2 | G56: 22002.5 | H56: 27703.34775 | I56: =ROUND(F56*H56,2) -> 55406.7 | J56: =CPU!I262 -> 22002.5
A57: 16.47 | B57: Sinapi | C57: 89356 | D57: TUBO PVC, SOLDAVEL, DN 25 MM, AGUA FRIA (NBR-5648) | E57: m | F57: 6 | G57: 26.33 | H57: 33.152103 | I57: 198.91 | J57: 26.33
A58: 16.48 | B58: Sinapi | C58: 89357 | D58: TUBO PVC, SOLDAVEL, DN 32 MM, AGUA FRIA (NBR-5648) | E58: m | F58: 18 | G58: 36.44 | H58: 45.881604 | I58: 825.87 | J58: 36.44
A59: 16.49 | B59: Sinapi | C59: 89448 | D59: TUBO PVC, SOLDAVEL, DN 40 MM, AGUA FRIA (NBR-5648) | E59: m | F59: 3 | G59: 19.26 | H59: 24.250266 | I59: 72.75 | J59: 19.26
A60: 16.50 | B60: Sinapi | C60: 9838 | D60: TUBO PVC SERIE NORMAL, DN 50 MM, PARA ESGOTO PREDIAL (NBR 5688) | E60: m | F60: 30 | G60: 12.91 | H60: 16.254981 | I60: 487.65 | J60: 12.91
A61: 16.51 | B61: Sinapi | C61: 89362 | D61: JOELHO 90 GRAUS, PVC, SOLDÁVEL, DN 25MM, INSTALADO EM RAMAL OU SUB-RAMAL DE ÁGUA - FORNECIMENTO E INSTALAÇÃO. AF_06/2022 | E61: un | F61: 5 | G61: 10.47 | H61: 13.182777 | I61: 65.91 | J61: 10.47
A62: 16.52 | B62: Sinapi | C62: 89367 | D62: JOELHO 90 GRAUS, PVC, SOLDÁVEL, DN 32MM, INSTALADO EM RAMAL OU SUB-RAMAL DE ÁGUA - FORNECIMENTO E INSTALAÇÃO. AF_06/2022 | E62: un | F62: 4 | G62: 14.52 | H62: 18.282132 | I62: 73.13 | J62: 14.52
A63: 16.53 | B63: Sinapi | C63: 89497 | D63: JOELHO 90 GRAUS, PVC, SOLDÁVEL, DN 40MM, INSTALADO EM PRUMADA DE ÁGUA - FORNECIMENTO E INSTALAÇÃO. AF_06/2022 | E63: un | F63: 3 | G63: 14.85 | H63: 18.697635 | I63: 56.09 | J63: 14.85
A64: 16.54 | B64: Sinapi | C64: 3874 | D64: LUVA SOLDAVEL COM BUCHA DE LATÃO DN25X1/2" | E64: un | F64: 5 | G64: 7.18 | H64: 9.040338 | I64: 45.2 | J64: 7.18
A65: 16.55 | B65: Sinapi | C65: 12909 | D65: CAP PVC, SOLDAVEL, DN 50 MM, SERIE NORMAL, PARA ESGOTO PREDIAL | E65: un | F65: 3 | G65: 5.38 | H65: 6.773958 | I65: 20.32 | J65: 5.38
A66: 16.56 | B66: Sinapi | C66: 7136 | D66: TE DE REDUCAO, PVC, SOLDAVEL, 90 GRAUS, 32 MM X 25 MM, PARA AGUA FRIA PREDIAL | E66: un | F66: 5 | G66: 8.01 | H66: 10.085391 | I66: 50.43 | J66: 8.01
A67: 16.57 | B67: Sinapi | C67: 97 | D67: ADAPTADOR PVC SOLDAVEL, COM FLANGE E ANEL DE VEDACAO, 32 MM X 1", PARA CAIXA D'ÁGUA | E67: un | F67: 1 | G67: 22.23 | H67: 27.989793 | I67: 27.99 | J67: 22.23
A68: 16.58 | B68: Sinapi | C68: 98 | D68: ADAPTADOR PVC SOLDAVEL, COM FLANGE E ANEL DE VEDACAO, 40 MM X 1 1/4", PARA CAIXA D'ÁGUA | E68: un | F68: 1 | G68: 33.27 | H68: 41.890257 | I68: 41.89 | J68: 33.27
A69: 16.59 | B69: Sinapi | C69: 11871 | D69: CAIXA D'AGUA EM POLIETILENO 500 LITROS, COM TAMPA | E69: un | F69: 1 | G69: 516.79 | H69: 650.690289 | I69: 650.69 | J69: 516.79
A70: 16.60 | B70: Sinapi | C70: 94795 | D70: TORNEIRA DE BOIA PARA CAIXA D'ÁGUA, ROSCÁVEL, 1/2" - FORNECIMENTO E INSTALAÇÃO. AF_08/2021 | E70: un | F70: 1 | G70: 35.12 | H70: 44.219592 | I70: 44.22 | J70: 35.12
A71: 16.61 | B71: Sinapi | C71: 799 | D71: BUCHA DE REDUCAO PVC, ROSCAVEL, 1" X 1/2" | E71: un | F71: 1 | G71: 4.21 | H71: 5.300811 | I71: 5.3 | J71: 4.21
A72: 16.62 | B72: Sinapi | C72: 11746 | D72: VALVULA DE ESFERA BRUTA EM BRONZE, BITOLA 1” | E72: un | F72: 1 | G72: 53.96 | H72: 67.941036 | I72: 67.94 | J72: 53.96
A73: 16.63 | B73: Sinapi | C73: 4177 | D73: NIPLE DE FERRO GALVANIZADO, COM ROSCA BSP, DE 1/2" | E73: un | F73: 1 | G73: 5.64 | H73: 7.101324 | I73: =ROUND(F73*H73,2) -> 7.1 | J73: 5.64
A74: 16.64 | B74: Sinapi | C74: 3855 | D74: LUVA SOLDAVEL COM BUCHA DE LATÃO DN25X1/2" | E74: un | F74: 1 | G74: 6.19 | H74: 7.793829 | I74: =ROUND(F74*H74,2) -> 7.79 | J74: 6.19
A75: 16.65 | B75: Sinapi | C75: 11674 | D75: REGISTRO ESFERA PVC DN25 SOLDAVEL | E75: un | F75: 1 | G75: 22.83 | H75: 28.745253 | I75: =ROUND(F75*H75,2) -> 28.75 | J75: 22.83
A76: 16.66 | B76: Sinapi | C76: 35277 | D76: CAIXA DE GORDURA EM PVC, DIAMETRO MINIMO 300 MM, DIAMETRO DE SAIDA 100 MM CAPACIDADE APROXIMADA 18 LITROS, COM TAMPA E CESTO | E76: un | F76: 2 | G76: 418.74 | H76: 527.235534 | I76: =ROUND(F76*H76,2) -> 1054.47 | J76: 418.74
A77: 16.67 | B77: Sinapi | C77: 89482 | D77: CAIXA SIFONADA, PVC, DN 100 X 100 X 50 MM, FORNECIDA E INSTALADA EM RAMAIS DE ENCAMINHAMENTO DE ÁGUA PLUVIAL. AF_06/2022 | E77: un | F77: 5 | G77: 44.17 | H77: 55.614447 | I77: 278.07 | J77: 44.17
A78: 16.68 | B78: Sinapi | C78: 89502 | D78: JOELHO 45 GRAUS, PVC, SOLDÁVEL, DN 50MM, INSTALADO EM PRUMADA DE ÁGUA - FORNECIMENTO E INSTALAÇÃO. AF_06/2022 | E78: un | F78: 4 | G78: 18.98 | H78: 23.897718 | I78: 95.59 | J78: 18.98
A79: 16.69 | B79: Sinapi | C79: 89501 | D79: JOELHO 90 GRAUS, PVC, SOLDÁVEL, DN 50MM, INSTALADO EM PRUMADA DE ÁGUA - FORNECIMENTO E INSTALAÇÃO. AF_06/2022 | E79: un | F79: 10 | G79: 15.99 | H79: 20.133009 | I79: 201.33 | J79: 15.99
A80: 16.70 | B80: Sinapi | C80: 103995 | D80: LUVA, PVC, SOLDÁVEL, DN 50MM, INSTALADO EM RAMAL DE DISTRIBUIÇÃO DE ÁGUA - FORNECIMENTO E INSTALAÇÃO. AF_06/2022 | E80: un | F80: 21 | G80: 16.73 | H80: 21.064743 | I80: 442.36 | J80: 16.73
A81: 16.71 | B81: Sinapi | C81: 89567 | D81: JUNÇÃO SIMPLES, PVC, SERIE R, ÁGUA PLUVIAL, DN 100 X 100 MM, JUNTA ELÁSTICA, FORNECIDO E INSTALADO EM RAMAL DE ENCAMINHAMENTO. AF_06/2022 | E81: un | F81: 6 | G81: 96.98 | H81: 122.107518 | I81: 732.65 | J81: 96.98
A82: 16.72 | B82: Sinapi | C82: 12909 | D82: CAP PVC, SOLDAVEL, DN 50 MM, SERIE NORMAL, PARA ESGOTO | E82: un | F82: 1 | G82: 5.38 | H82: 6.773958 | I82: 6.77 | J82: 5.38
A83: 16.73 | B83: Sinapi | C83: 34628 | D83: DISJUNTOR TIPO DIN/IEC, BIPOLAR 63 A | E83: un | F83: 1 | G83: 71.16 | H83: 89.597556 | I83: 89.6 | J83: 71.16
A84: 16.74 | B84: Sinapi | C84: 34616 | D84: DISJUNTOR TIPO DIN/IEC, BIPOLAR DE 6 ATE 32A | E84: un | F84: 6 | G84: 50.45 | H84: 63.521595 | I84: 381.13 | J84: 50.45
A85: 16.75 | B85: ORSE | C85: 07943/ORSE | D85: DISJUNTOR BIPOLAR DR 25A - DISPOSITIVO DIFERENCIAL RESIDUAL, TIPO AC, 30MA | E85: un | F85: 3 | G85: 278.5 | H85: 350.65935 | I85: 1051.98 | J85: 278.5
A86: 16.76 | B86: Sinapi | C86: 39805 | D86: QUADRO DE DISTRIBUICAO, EM PVC, DE EMBUTIR, COM BARRAMENTO TERRA / NEUTRO, PARA 12 DISJUNTORES NEMA OU 16 DISJUNTORES DIN | E86: un | F86: 1 | G86: 146.64 | H86: 184.634424 | I86: 184.63 | J86: 146.64
A87: 16.77 | B87: Sinapi | C87: 1014 | D87: CABO DE COBRE, FLEXIVEL, CLASSE 4 OU 5, ISOLACAO EM PVC/A, ANTICHAMA BWF-B, 1 CONDUTOR, 450/750 V, SECAO NOMINAL 2,5 MM2 | E87: m | F87: 397.5 | G87: 2.54 | H87: 3.198114 | I87: 1271.25 | J87: 2.54
A88: 16.78 | B88: Sinapi | C88: 39471 | D88: DISPOSITIVO DPS CLASSE II, 1 POLO, TENSAO MAXIMA DE 275 V, CORRENTE MAXIMA DE *45* KA (TIPO AC) | E88: un | F88: 2 | G88: 101.33 | H88: 127.584603 | I88: 255.17 | J88: 101.33
A89: 16.79 | B89: Sinapi | C89: 981 | D89: CABO DE COBRE, FLEXIVEL, CLASSE 4 OU 5, ISOLACAO EM PVC/A, ANTICHAMA BWF-B, 1 CONDUTOR, 450/750 V, SECAO NOMINAL 4 MM2 | E89: m | F89: 77.58 | G89: 4.21 | H89: 5.300811 | I89: 411.24 | J89: 4.21
A90: 16.80 | B90: Sinapi | C90: 993 | D90: CABO DE COBRE, FLEXIVEL, CLASSE 4 OU 5, ISOLACAO EM PVC/A, ANTICHAMA BWF-B, COBERTURA PVC-ST1, ANTICHAMA BWF-B, 1 CONDUTOR, 0,6/1 KV, SECAO NOMINAL 1,5 MM2 | E90: m | F90: 396.4 | G90: 2.13 | H90: 2.681883 | I90: 1063.1 | J90: 2.13
A91: 16.81 | B91: Sinapi | C91: 38076 | D91: TOMADAS (2 MODULOS) 2P+T 10A, 250V, CONJUNTO MONTADO PARA EMBUTIR 4" X 2" (PLACA + SUPORTE + MODULOS) | E91: un | F91: 11 | G91: 17.96 | H91: 22.613436 | I91: 248.75 | J91: 17.96
A92: 16.82 | B92: Sinapi | C92: 1871 | D92: CAIXA OCTOGONAL DE FUNDO MOVEL, EM PVC, DE 3" X 3", PARA ELETRODUTO FLEXIVEL CORRUGADO | E92: un | F92: 8 | G92: 5.32 | H92: 6.698412 | I92: 53.59 | J92: 5.32
A93: 16.83 | B93: Sinapi | C93: 2689 | D93: ELETRODUTO PVC FLEXIVEL CORRUGADO, COR AMARELA, DE 20 MM | E93: m | F93: 15.53 | G93: 3.01 | H93: 3.789891 | I93: 58.86 | J93: 3.01
A94: 16.84 | B94: Sinapi | C94: 2688 | D94: ELETRODUTO PVC FLEXIVEL CORRUGADO, COR AMARELA, DE 25 MM | E94: m | F94: 71.74 | G94: 3.26 | H94: 4.104666 | I94: 294.47 | J94: 3.26
A95: 16.85 | B95: Sinapi | C95: 20111 | D95: FITA ISOLANTE ADESIVA ANTICHAMA, USO ATE 750 V, EM ROLO DE 19 MM X 20 M | E95: un | F95: 6 | G95: 19.48 | H95: 24.527268 | I95: 147.16 | J95: 19.48
A96: 16.86 | B96: Sinapi | C96: 1873 | D96: CAIXA DE PASSAGEM, EM PVC, DE 4" X 4", PARA ELETRODUTO FLEXIVEL CORRUGADO | E96: un | F96: 1 | G96: 5.91 | H96: 7.441281 | I96: 7.44 | J96: 5.91
A97: 16.87 | B97: Sinapi | C97: 38063 | D97: INTERRUPTOR PARALELO 10A, 250V, CONJUNTO MONTADO PARA EMBUTIR 4" X 2" (PLACA + SUPORTE + MODULO) | E97: un | F97: 4 | G97: 9.67 | H97: 12.175497 | I97: 48.7 | J97: 9.67
A98: 16.88 | B98: Sinapi | C98: 38078 | D98: INTERRUPTOR PARALELO + TOMADA 2P+T 10A, 250V, CONJUNTO MONTADO PARA EMBUTIR 4" X 2" (PLACA + SUPORTE + MODULOS) | E98: un | F98: 1 | G98: =J98 -> 16.59 | H98: 20.888469 | I98: 20.89 | J98: 16.59
A99: 16.89 | B99: Sinapi | C99: 38775 | D99: LUMINARIA TIPO TARTARUGA PARA AREA EXTERNA EM ALUMINIO, COM GRADE, PARA 1 LAMPADA, BASE E27, POTENCIA MAXIMA 40/60 W (NAO INCLUI LAMPADA) | E99: un | F99: 8 | G99: 80.79 | H99: =(G99*K$2) -> 91.77744 | I99: 734.22 | J99: 80.79
A100: 16.90 | B100: Sinapi | C100: 10569 | D100: CAIXA DE PASSAGEM / DERIVACAO / LUZ, OCTOGONAL 4 X4, EM ACO ESMALTADA, COM FUNDO MOVEL SIMPLES (FMS) | E100: un | F100: 6 | G100: 2.96 | H100: =G100*K$1 -> 3.726936 | I100: 22.36 | J100: 2.96
A101: 16.91 | B101: Sinapi | C101: 100954 | D101: TRANSPORTE COM CAMINHÃO CARROCERIA COM GUINDAUTO (MUNCK), MOMENTO MÁXIMO DE CARGA 11,7 TM, EM VIA INTERNA (DENTRO DO CANTEIRO - UNIDADE: TXKM). AF_07/2020 | E101: TXKM | F101: 600 | G101: 9.25 | H101: 11.646675 | I101: =ROUND(F101*H101,2) -> 6988.01 | J101: 9.25
A102: 16.92 | B102: Sinapi | C102: 100788 | D102: KIT CAVALETE PARA GÁS - SEM MEDIDOR OU REGULADOR - ENTRADA INDIVIDUAL PRINCIPAL, EM AÇO GALVANIZADO DN 15 E 25 MM (1/2" E 1") - FORNECIMENTO E INSTALAÇÃO | E102: un | F102: 1 | G102: 634.91 | H102: 799.415181 | I102: =ROUND(F102*H102,2) -> 799.42 | J102: 634.91
A103: 16.93 | B103: CPU | C103: CPU008 | D103: CHAPA XADREZ EM ALUMINIO PARA PISO e:3mm, INCLUSO REBITE PARA FIXAÇÃO - APENAS MATERIAL | E103: m² | F103: 56.544 | G103: 540.9424 | H103: 681.1005758 | I103: =ROUND(F103*H103,2) -> 38512.15 | J103: =CPU!I180 -> 540.9424
A104: 16.94 | B104: CPU | C104: CPU006 | D104: REVESTIMENTO DE PAREDES EM CHAPAS DE AÇO INOXIDÁVEL AISI 304 - APENAS MATERIAL | E104: m² | F104: 160.29 | G104: 358.536 | H104: 451.4326776 | I104: =ROUND(F104*H104,2) -> 72360.14 | J104: =CPU!I150 -> 358.536

Sheet CPU
A1: MINISTÉRIO DA INTEGRAÇÃO E DO DESENVOLVIMENTO REGIONAL - MIDR
A2: COMPANHIA DE DESENVOLVIMENTO DOS VALES DO SÃO FRANCISCO E DO PARNAÍBA
A3: SEDE
A4: PLANILHA ORÇAMENTÁRIA DE ESTIMATIVA GERAL PARA O ESTADO DO PARÁ | H4: Base SINAPI-PA 03-2025 ORSE 02-2025
H5: Data: Maio - 2025
A6: COMPOSIÇÕES DE PREÇO UNITÁRIO
A7: COMPOSIÇÃO DE PREÇO UNITÁRIO | I7: CPU003
A8: DESCRIÇÃO DO SERVIÇO | H8: DATA BASE: | I8: 2024-07-01
A9: ADMINISTRAÇÃO LOCAL | H9: UNIDADE: | I9: mês
A10: MATERIAL
A11: BASE | B11: CÓDIGO | C11: DISCRIMINAÇÃO | D11: UNI | E11: QUANT. | F11: PROD | G11: P.UN.PROD | H11: P.UN.IMPR | I11: P.TOTAL
A12: MERCADO | C12: ALUGUEL | D12: mês | E12: 1 | H12: 800 | I12: =E12*H12 -> 800
A13: MERCADO | C13: TELEFONE E INTERNET | D13: mês | E13: 1 | H13: 99.9 | I13: 99.9
A14: MERCADO | C14: ENERGIA ELÉTRICA | D14: kwh | E14: 200 | H14: 0.53 | I14: 106
A15: MERCADO | C15: ÁGUA E ESGOTO | D15: mês | E15: 1 | H15: 100 | I15: 100
A16: MERCADO | C16: MATERIAL PARA ESCRITÓRIO | D16: mês | E16: 1 | H16: 150 | I16: 150
A17: MERCADO | C17: MATERIAL DE LIMPEZA | D17: mês | E17: 1 | H17: 50 | I17: 50
A18: SUB-TOTAL | I18: =SUM(I12:I17) -> 1305.9
A19: MÃO DE OBRA
A20: BASE | B20: CÓDIGO | C20: DISCRIMINAÇÃO | D20: UNI | E20: QUANT. | H20: P.UNIT. | I20: P.TOTAL
A21: MERCADO | C21: ENGENHEIRO DE OBRA | D21: mês | E21: 1 | H21: 8483 | I21: =E21*H21 -> 8483
A22: MERCADO | C22: MESTRE DE OBRAS | D22: mês | E22: 1 | H22: 4515.12 | I22: =E22*H22 -> 4515.12
A23: MERCADO | C23: AUXILIAR DE ESCRITORIO COM ENCARGOS COMPLEMENTARES | D23: mês | E23: 1 | H23: 1100 | I23: =E23*H23 -> 1100
A24: MERCADO | C24: TÉCNICO EM SEGURANÇA DO TRABALHO | D24: h | E24: 44 | H24: 27.26 | I24: =E24*H24 -> 1199.44
A25: MERCADO | C25: VIGIA | D25: mês | E25: 1 | H25: 1100 | I25: =E25*H25 -> 1100
A26: SUB-TOTAL | I26: =SUM(I21:I25) -> 16397.56
A27: PRODUÇÃO DA EQUIPE | D27: 1 | E27: CUSTO | I27: =I26+I18 -> 17703.46
A28: TOTAL - R$ | I28: =I27/D27 -> 17703.46
A29: BDI % | I29: 1
A30: TOTAL DO SERVIÇO - R$ | I30: =I28*I29 -> 17703.46
A32: COMPOSIÇÃO DE PREÇO UNITÁRIO | I32: CPU001 | J32: XX
A33: DESCRIÇÃO DO SERVIÇO | H33: DATA BASE: | I33: 2025-03-01
A34: EXECUÇÃO DE INSTALAÇÕES HIDROSSANITÁRIAS, EXCLUSIVE EQUIPAMENTOS | H34: UNIDADE: | I34: cj
A35: MÃO DE OBRA
A36: BASE | B36: CÓDIGO | C36: DISCRIMINAÇÃO | D36: UNI | E36: QUANT. | H36: P.UNIT. | I36: P.TOTAL
A37: SINAPI | B37: 88316 | C37: SERVENTE DE OBRAS | D37: h | E37: 80 | H37: 25.11 | I37: =E37*H37 -> 2008.8
A38: SINAPI | B38: 88309 | C38: PEDREIRO | D38: h | E38: 40 | H38: 30.79 | I38: =E38*H38 -> 1231.6
A39: SUB-TOTAL | I39: =SUM(I37:I38) -> 3240.4
A40: PRODUÇÃO DA EQUIPE | D40: 1 | E40: CUSTO | I40: =SUM(I39) -> 3240.4
A41: TOTAL - R$ | I41: =I40/D40 -> 3240.4
A42: BDI % | I42: 1
A43: TOTAL DO SERVIÇO - R$ | I43: =I41*I42 -> 3240.4 | K43: 2832.8
A45: COMPOSIÇÃO DE PREÇO UNITÁRIO | I45: CPU002 | J45: XX
A46: DESCRIÇÃO DO SERVIÇO | H46: DATA BASE: | I46: 2025-03-01
A47: EXECUÇÃO DE INSTALAÇÕES ELÉTRICAS, EXCLUSIVE EQUIPAMENTOS | H47: UNIDADE: | I47: cj
A48: MÃO DE OBRA
A49: BASE | B49: CÓDIGO | C49: DISCRIMINAÇÃO | D49: UNI | E49: QUANT. | H49: P.UNIT. | I49: P.TOTAL
A50: SINAPI | B50: 88247 | C50: AUXILIAR DE ELETRICISTA | D50: h | E50: 80 | H50: 26.05 | I50: =E50*H50 -> 2084
A51: SINAPI | B51: 88264 | C51: ELETRICISTA | D51: h | E51: 40 | H51: 31.09 | I51: =E51*H51 -> 1243.6
A52: SUB-TOTAL | I52: =SUM(I50:I51) -> 3327.6
A53: PRODUÇÃO DA EQUIPE | D53: 1 | E53: CUSTO | I53: =SUM(I52) -> 3327.6
A54: TOTAL - R$ | I54: =I53/D53 -> 3327.6
A55: BDI % | I55: 1
A56: TOTAL DO SERVIÇO - R$ | I56: =I54*I55 -> 3327.6 | K56: 2916
A58: COMPOSIÇÃO DE PREÇO UNITÁRIO | I58: CPU003 | J58: XX
A59: DESCRIÇÃO DO SERVIÇO | H59: DATA BASE: | I59: 2025-03-01
A60: CORTE DE CONTAINER PARA ESQUADRIAS | H60: UNIDADE: | I60: m²
A61: MATERIAL
A62: BASE | B62: CÓDIGO | C62: DISCRIMINAÇÃO | D62: UNI | E62: QUANT. | H62: P.UNIT. | I62: P.TOTAL
A63: SINAPI | B63: 11359 | C63: ESMERILHADEIRA ANGULAR ELETRICA, DIAMETRO DO DISCO 7 '' (180 MM), ROTACAO 8500RPM, POTENCIA 2400 W | D63: un | E63: 0.071 | H63: 1037.5 | I63: =E63*H63 -> 73.6625
A64: SINAPI | B64: 44531 | C64: DISCO DE CORTE DIAMANTADO SEGMENTADO DIAMETRO DE 180 MM PARA ESMERILHADEIRA 7 " | D64: un | E64: 1 | H64: 82.43 | I64: =E64*H64 -> 82.43
A65: SUB-TOTAL | I65: =SUM(I63:I64) -> 156.0925
A66: MÃO DE OBRA
A67: BASE | B67: CÓDIGO | C67: DISCRIMINAÇÃO | D67: UNI | E67: QUANT. | H67: P.UNIT. | I67: P.TOTAL
A68: SINAPI | B68: 88317 | C68: SOLDADOR COM ENCARGOS COMPLEMENTARES | D68: h | E68: 0.5 | H68: 31.67 | I68: =E68*H68 -> 15.835
A69: SINAPI | B69: 88315 | C69: SERRALHEIRO COM ENCARGOS COMPLEMENTARES | D69: h | E69: 0.5 | H69: 30.53 | I69: =E69*H69 -> 15.265
A70: SUB-TOTAL | I70: =SUM(I68:I69) -> 31.1
A71: PRODUÇÃO DA EQUIPE | D71: 1 | E71: CUSTO | I71: =I70+I65 -> 187.1925
A72: TOTAL - R$ | I72: =I71/D71 -> 187.1925
A73: BDI % | I73: 1
A74: TOTAL DO SERVIÇO - R$ | I74: =I72*I73 -> 187.1925 | K74: 183.3
A76: COMPOSIÇÃO DE PREÇO UNITÁRIO | I76: CPU010 | J76: XX
A77: DESCRIÇÃO DO SERVIÇO | H77: DATA BASE: | I77: 2024-07-01
A78: FORNECIMENTO E MONTAGEM DE ESTRUTURA PARA COBERTURA COM ÁREA TOTAL DE 86,27 M² INCLUINDO CALHA E TELHA SANDUÍCHE | H78: UNIDADE: | I78: cj
A79: MÃO DE OBRA
A80: BASE | B80: CÓDIGO | C80: DISCRIMINAÇÃO | D80: UNI | E80: QUANT. | H80: P.UNIT. | I80: P.TOTAL
A81: COTAÇÃO | C81: FABRICAÇÃO E MONTAGEM DE ESTRUTURA METÁLICA PARA COBERTURA DE UNIDADE COM ÁREA TOTAL DE 86,26 M² | D81: cj | E81: 1 | H81: 24877.99 | I81: =E81*H81 -> 24877.99
A82: SUB-TOTAL | I82: =SUM(I81:I81) -> 24877.99
A83: PRODUÇÃO DA EQUIPE | D83: 1 | E83: CUSTO | I83: =SUM(I82) -> 24877.99
A84: TOTAL - R$ | I84: =I83/D83 -> 24877.99
A85: BDI % | I85: 1
A86: TOTAL DO SERVIÇO - R$ | I86: =I84*I85 -> 24877.99
A88: COMPOSIÇÃO DE PREÇO UNITÁRIO | I88: CPU011 | J88: XX
A89: DESCRIÇÃO DO SERVIÇO | H89: DATA BASE: | I89: 2024-07-01
A90: FORNECIMENTO E MONTAGEM DE ESTRUTURA PARA COBERTURA COM ÁREA TOTAL DE 137,9 M² INCLUINDO CALHA E TELHA SANDUÍCHE | H90: UNIDADE: | I90: cj
A91: MÃO DE OBRA
A92: BASE | B92: CÓDIGO | C92: DISCRIMINAÇÃO | D92: UNI | E92: QUANT. | H92: P.UNIT. | I92: P.TOTAL
A93: COTAÇÃO | C93: FABRICAÇÃO E MONTAGEM DE ESTRUTURA METÁLICA PARA COBERTURA DE UNIDADE COM ÁREA TOTAL DE 137,9 M² | D93: cj | E93: 1 | H93: 39043.9 | I93: =E93*H93 -> 39043.9
A94: SUB-TOTAL | I94: =SUM(I93:I93) -> 39043.9
A95: PRODUÇÃO DA EQUIPE | D95: 1 | E95: CUSTO | I95: =SUM(I94) -> 39043.9
A96: TOTAL - R$ | I96: =I95/D95 -> 39043.9
A97: BDI % | I97: 1
A98: TOTAL DO SERVIÇO - R$ | I98: =I96*I97 -> 39043.9
A100: COMPOSIÇÃO DE PREÇO UNITÁRIO | I100: CPU004 | J100: XX
A101: DESCRIÇÃO DO SERVIÇO | H101: DATA BASE: | I101: 2025-03-01
A102: MODIFICAÇÕES NO CONTAINER COM CORTE POR ESMERILHADEIRA | H102: UNIDADE: | I102: m
A103: MATERIAL
A104: BASE | B104: CÓDIGO | C104: DISCRIMINAÇÃO | D104: UNI | E104: QUANT. | H104: P.UNIT. | I104: P.TOTAL
A105: SINAPI | B105: 11359 | C105: ESMERILHADEIRA ANGULAR ELETRICA, DIAMETRO DO DISCO 7 '' (180 MM), ROTACAO 8500RPM, POTENCIA 2400 W | D105: un | E105: 0.04 | H105: 1037.5 | I105: =E105*H105 -> 41.5
A106: SINAPI | B106: 44531 | C106: DISCO DE CORTE DIAMANTADO SEGMENTADO DIAMETRO DE 180 MM PARA ESMERILHADEIRA 7 " | D106: un | E106: 0.5 | H106: 82.43 | I106: =E106*H106 -> 41.215
A107: SUB-TOTAL | I107: =SUM(I105:I106) -> 82.715
A108: MÃO DE OBRA
A109: BASE | B109: CÓDIGO | C109: DISCRIMINAÇÃO | D109: UNI | E109: QUANT. | H109: P.UNIT. | I109: P.TOTAL
A110: SINAPI | B110: 88317 | C110: SOLDADOR COM ENCARGOS COMPLEMENTARES | D110: h | E110: 0.25 | H110: 31.67 | I110: =E110*H110 -> 7.9175
A111: SINAPI | B111: 88315 | C111: SERRALHEIRO COM ENCARGOS COMPLEMENTARES | D111: h | E111: 0.25 | H111: 30.53 | I111: =E111*H111 -> 7.6325
A112: SUB-TOTAL | I112: =SUM(I110:I111) -> 15.55
A113: PRODUÇÃO DA EQUIPE | D113: 1 | E113: CUSTO | I113: =I112+I107 -> 98.265
A114: TOTAL - R$ | I114: =I113/D113 -> 98.265
A115: BDI % | I115: 1
A116: TOTAL DO SERVIÇO - R$ | I116: =I114*I115 -> 98.265 | K116: 96.3
A118: COMPOSIÇÃO DE PREÇO UNITÁRIO | I118: CPU005 | J118: XX
A119: DESCRIÇÃO DO SERVIÇO | H119: DATA BASE: | I119: 2025-03-01
A120: MODIFICAÇÕES NO CONTAINER UNIÃO ATRAVÉS DO PROCESSO DE SOLDAGEM, INCLUSO IÇAMENTO DO CONTAINER | H120: UNIDADE: | I120: m
A121: EQUIPAMENTO
A122: BASE | B122: CÓDIGO | C122: DISCRIMINAÇÃO | D122: UNI | E122: QUANT. | H122: P.UNIT. | I122: P.TOTAL
A123: SINAPI | B123: 92716 | C123: APARELHO PARA CORTE E SOLDA OXI-ACETILENO SOBRE RODAS, INCLUSIVE CILINDROS E MAÇARICOS | D123: chp | E123: 0.1846 | H123: 109.39 | I123: =E123*H123 -> 20.193394
A124: SINAPI | B124: 92715 | C124: APARELHO PARA CORTE E SOLDA OXI-ACETILENO SOBRE RODAS, INCLUSIVE CILINDROS E MAÇARICOS - MATERIAIS NA OPERAÇÃO. | D124: h | E124: 1.56 | H124: 109 | I124: =E124*H124 -> 170.04
A125: SINAPI | B125: 5928 | C125: GUINDAUTO HIDRÁULICO, CAPACIDADE MÁXIMA DE CARGA 6200 KG, MOMENTO MÁXIMO DE CARGA 11,7 TM, ALCANCE MÁXIMO HORIZONTAL 9,70 M, INCLUSIVE CAMINHÃO TOCO PBT 16.000 KG, POTÊNCIA DE 189 CV | D125: chp | E125: 0.2388 | H125: 300.84 | I125: =E125*H125 -> 71.840592
A126: SUB-TOTAL | I126: =SUM(I123:I125) -> 262.073986
A127: SERVIÇOS - COMPOSIÇÕES AUXILIARES
A128: BASE | B128: CÓDIGO | C128: DISCRIMINAÇÃO | D128: UNI | E128: QUANT. | H128: P.UNIT. | I128: P.TOTAL
A129: SINAPI | B129: 98746 | C129: SOLDA DE TOPO EM CHAPA/PERFIL/TUBO DE AÇO CHANFRADO, ESPESSURA=1/4''. | D129: m | E129: 1 | H129: 82.94 | I129: =E129*H129 -> 82.94
A130: SUB-TOTAL | I130: =SUM(I129:I129) -> 82.94
A131: MÃO DE OBRA
A132: BASE | B132: CÓDIGO | C132: DISCRIMINAÇÃO | D132: UNI | E132: QUANT. | H132: P.UNIT. | I132: P.TOTAL
A133: SINAPI | B133: 88317 | C133: SOLDADOR COM ENCARGOS COMPLEMENTARES | D133: h | E133: 1.56 | H133: 31.67 | I133: =E133*H133 -> 49.4052
A134: SUB-TOTAL | I134: =SUM(I133:I133) -> 49.4052
A135: PRODUÇÃO DA EQUIPE | D135: 1 | E135: CUSTO | I135: =I134+I126+I130 -> 394.419186
A136: TOTAL - R$ | I136: =I135/D135 -> 394.419186
A137: BDI % | I137: 1
A138: TOTAL DO SERVIÇO - R$ | I138: =I136*I137 -> 394.419186 | K138: 275.37
A140: COMPOSIÇÃO DE PREÇO UNITÁRIO | I140: CPU006
A141: DESCRIÇÃO DO SERVIÇO | H141: DATA BASE: | I141: 2025-03-01 | J141: REV-005 02/07/2024
A142: REVESTIMENTO DE PAREDES EM CHAPAS DE AÇO INOXIDÁVEL AISI 304 - CONSIDERANDO CHAPA DE 1,2mm | H142: UNIDADE: | I142: M²
A143: APENAS MATERIAL
A144: BASE | B144: CÓDIGO | C144: DISCRIMINAÇÃO | D144: UNI | E144: QUANT. | H144: P.UNIT. | I144: P.TOTAL
A145: COTAÇÃO | C145: CHAPAS DE AÇO INOXIDÁVEL AISI 304 | D145: KG | E145: 9.6 | H145: 34 | I145: =E145*H145 -> 326.4
A146: SINAPI | B146: 131 | C146: ADESIVO ESTRUTURAL A BASE DE RESINA EPOXI, BICOMPONENTE, PASTOSO (TIXOTROPICO) | D146: KG | E146: 0.6 | H146: 53.56 | I146: =E146*H146 -> 32.136
A147: SUB-TOTAL | I147: =SUM(I145:I146) -> 358.536
A148: TOTAL - R$ | I148: =I147 -> 358.536
A149: BDI % | I149: 1
A150: TOTAL DO SERVIÇO - R$ | I150: =I148*I149 -> 358.536
A152: COMPOSIÇÃO DE PREÇO UNITÁRIO | I152: CPU007
A153: DESCRIÇÃO DO SERVIÇO | H153: DATA BASE: | I153: 2025-03-01
A154: REVESTIMENTO CERÂMICO PARA PISO COM PLACAS TIPO ESMALTADA DE DIMENSÕES 45x45cm COM ARGAMASSA AC III | H154: UNIDADE: | I154: m²
A155: MATERIAL
A156: BASE | B156: CÓDIGO | C156: DISCRIMINAÇÃO | D156: UNI | E156: QUANT. | H156: P.UNIT. | I156: P.TOTAL
A157: Sinapi | B157: 37596 | C157: ARGAMASSA COLANTE TIPO AC III E | D157: KG | E157: 9.1325 | H157: 2.86 | I157: =E157*H157 -> 26.11895
A158: Sinapi | B158: 1287 | C158: PISO EM CERAMICA ESMALTADA EXTRA, COR LISA, PEI MAIOR OU IGUAL A 4, FORMATO MENOR OU IGUAL A 5 CM2 | D158: m² | E158: 1.1136 | H158: 37.57 | I158: =E158*H158 -> 41.837952
A159: Sinapi | B159: 34357 | C159: REJUNTE CIMENTÍCIO, QUALQUER COR | D159: KG | E159: 0.188 | H159: 5.46 | I159: =E159*H159 -> 1.02648
A160: SUB-TOTAL | I160: =SUM(I157:I159) -> 68.983382
A161: MÃO DE OBRA
A162: BASE | B162: CÓDIGO | C162: DISCRIMINAÇÃO | D162: UNI | E162: QUANT. | H162: P.UNIT. | I162: P.TOTAL
A163: SINAPI | B163: 88317 | C163: AZULEJISTA OU LADRILHISTA COM ENCARGOS COMPLEMENTARES | D163: h | E163: 0.8064 | H163: 31.67 | I163: =E163*H163 -> 25.538688
A164: SINAPI | B164: 88316 | C164: SERVENTE COM ENCARGOS COMPLEMENTARES | D164: h | E164: 0.2068 | H164: 25.11 | I164: =E164*H164 -> 5.192748 | J164: REV-005 02/07/2024
A165: SUB-TOTAL | I165: =SUM(I163:I164) -> 30.731436
A166: PRODUÇÃO DA EQUIPE | D166: 1 | E166: CUSTO | I166: =I165+I160 -> 99.714818
A167: TOTAL - R$ | I167: =I166/D166 -> 99.714818
A168: BDI % | I168: 1
A169: TOTAL DO SERVIÇO - R$ | I169: =I167*I168 -> 99.714818
A171: COMPOSIÇÃO DE PREÇO UNITÁRIO | I171: CPU008
A172: DESCRIÇÃO DO SERVIÇO | H172: DATA BASE: | I172: 2025-03-01
A173: CHAPA XADREZ EM ALUMINIO PARA PISO e:3mm, INCLUSO REBITE PARA FIXAÇÃO - MATERIAL | H173: UNIDADE: | I173: m
A174: MATERIAL
A175: BASE | B175: CÓDIGO | C175: DISCRIMINAÇÃO | D175: UNI | E175: QUANT. | H175: P.UNIT. | I175: P.TOTAL
A176: SINAPI | B176: 1337 | C176: CHAPA DE ACO XADREZ PARA PISOS, E = 1/4" (6,30 MM) 54,53 KG/M2 | D176: kg | E176: 38 | H176: 9.5 | I176: =E176*H176 -> 361
A177: SINAPI | B177: 10997 | C177: ELETRODO REVESTIDO AWS - E7018, DIAMETRO IGUAL A 4,00 MM | D177: Kg | E177: 2.88 | H177: 62.48 | I177: =E177*H177 -> 179.9424
A178: SUB-TOTAL | I178: =SUM(I176:I177) -> 540.9424
A179: BDI % | I179: 1
A180: TOTAL DO SERVIÇO - R$ | I180: =I178 -> 540.9424 | J180: REV-005 04/07/2024
A182: COMPOSIÇÃO DE PREÇO UNITÁRIO | I182: CPU009
A183: DESCRIÇÃO DO SERVIÇO | H183: DATA BASE: | I183: 2025-03-01
A184: CHAPA XADREZ EM ALUMINIO PARA PISO e:3mm, INCLUSO REBITE PARA FIXAÇÃO - MÃO DE OBRA | H184: UNIDADE: | I184: m
A185: MÃO DE OBRA
A186: BASE | B186: CÓDIGO | C186: DISCRIMINAÇÃO | D186: UNI | E186: QUANT. | H186: P.UNIT. | I186: P.TOTAL
A187: SINAPI | B187: 88315 | C187: SERRALHEIRO COM ENCARGOS | D187: H | E187: 8.99 | H187: 30.53 | I187: =E187*H187 -> 274.4647
A188: SINAPI | B188: 88316 | C188: SERVENTE COM ENCARGOS COMPLEMENTARES | D188: H | E188: 6.42 | H188: 25.11 | I188: =E188*H188 -> 161.2062
A189: SUB-TOTAL | I189: =SUM(I187:I188) -> 435.6709
A190: PRODUÇÃO DA EQUIPE | D190: 1 | E190: CUSTO | I190: =I189 -> 435.6709
A191: TOTAL - R$ | I191: =I190/D190 -> 435.6709
A192: TOTAL DO SERVIÇO - R$ | I192: =I190 -> 435.6709
A194: COMPOSIÇÃO DE PREÇO UNITÁRIO | I194: CPU0010
A195: DESCRIÇÃO DO SERVIÇO | H195: DATA BASE: | I195: 2025-03-01
A196: REVESTIMENTO DE PAREDES EM CHAPAS DE AÇO INOXIDÁVEL AISI 304 - CONSIDERANDO CHAPA DE 1,2mm | H196: UNIDADE: | I196: M²
A197: APENAS MÃO DE OBRA
A198: BASE | B198: CÓDIGO | C198: DISCRIMINAÇÃO | D198: UNI | E198: QUANT. | H198: P.UNIT. | I198: P.TOTAL
A199: SINAPI | B199: 88317 | C199: SOLDADOR COM ENCARGOS COMPLEMENTARES | D199: h | E199: 0.8 | H199: 31.67 | I199: =E199*H199 -> 25.336
A200: SINAPI | B200: 88315 | C200: SERRALHEIRO COM ENCARGOS COMPLEMENTARES | D200: h | E200: 0.8 | H200: 30.53 | I200: =E200*H200 -> 24.424
A201: SUB-TOTAL | I201: =SUM(I199:I200) -> 49.76
A202: PRODUÇÃO DA EQUIPE | D202: 1 | E202: CUSTO | I202: =I201 -> 49.76
A203: TOTAL - R$ | I203: =I202/D202 -> 49.76
A204: BDI % | I204: 1
A205: TOTAL DO SERVIÇO - R$ | I205: =I203*I204 -> 49.76
A207: COMPOSIÇÃO DE PREÇO UNITÁRIO | I207: CPU011
A208: DESCRIÇÃO DO SERVIÇO | H208: DATA BASE: | I208: 2025-03-01
A209: GUARDA-CORPO DE AÇO CARBONO, MONTANTES TUBULARES DE 1.1/2" ESPAÇADOS EM 0,75M, ALTURA APROXIMADA DE 0,90M, PREPARADO COM FUNDO E TINTA EPÓXI NA COR AMARELA | H209: UNIDADE: | I209: m
A210: MATERIAL
A211: BASE | B211: CÓDIGO | C211: DISCRIMINAÇÃO | D211: UNI | E211: QUANT. | H211: P.UNIT. | I211: P.TOTAL
A212: SINAPI | B212: 1332 | C212: CHAPA DE ACO GROSSA, ASTM A36, E = 3/8 " (9,53 MM) 74,69 KG/M2 | D212: KG | E212: 0,8960000 | H212: 8.45 | I212: =E212*H212 -> 7.5712
A213: SINAPI | B213: 11002 | C213: ELETRODO REVESTIDO AWS - E6013, DIAMETRO IGUAL A 2,50 MM | D213: KG | E213: 0,0650000 | H213: 31.89 | I213: 2.07285
... 66 more rows
